Workbook

Sheet Index
A1: Actual Name | B1: SheetName | C1: Profit-Sharing Sheet
A2: Moses Lake | B2: ML.KH | C2: MLPS
A3: Pasco | B3: P.KH | C3: PasPS
A4: Kennewick | B4: K.KH | C4: KennPS
A5: Othello | B5: O.KH | C5: OthPS
A6: Richland | B6: R.KH | C6: RichPS
A7: Grandview | B7: G.KH | C7: GVPS
A8: Clarkston | B8: C.KH | C8: CLPS
A9: Milton Freewater | B9: MF.KH | C9: MFPS
A10: Benton City | B10: BC.KH | C10: BCPS
A11: Santiam | B11: S.KH | C11: SanPS
A12: Meridian | B12: ME.KH | C12: MerPS
A13: West Richland | B13: WR.KH | C13: WRPS
A14: Dallas | B14: D.KH
A15: Sweet Home | B15: SH.KH
A16: Nampa | B16: A.ME | C16: NamPS
A17: Hermiston | B17: H.ME | C17: HermPS
A18: Meridian North | B18: MEN.KH
A19: Billing | B19: Billing.KH
A20: Admin | B20: Admin.KH
A21: Insurance | B21: Insur.KH
A22: Task Code | B22: TaskCode.KH
A23: Commissions | B23: Comm.KH
A24: Overall | B24: CPT.KH

Sheet PasPS
A1: Pasco - 3rd Quarter 2014
A7: Worksheet
A10: Employee | B10: Commissions | C10: Medical Ins. | D10: Quarterly Wages | E10: Total Quarterly Wages
A11: Brian T Brooks | B11: 32513 | C11: =FindInsurance(A11) -> 1725 | D11: 47577 | E11: =D11-SUM(B11:C11) -> 13339
A12: Clay J Smith | B12: 15994 | C12: =FindInsurance(A12) -> 1725 | D12: 35705 | E12: =D12-SUM(B12:C12) -> 17986
A13: Belen G Lopez | B13: 3216 | C13: =FindInsurance(A13) -> 1725 | D13: 13059 | E13: 8118
A16: Totals | B16: =SUM(B11:B15) -> 51723 | C16: =SUM(C11:C15) -> 5175 | D16: =SUM(D11:D15) -> 96341 | E16: =SUM(E11:E15) -> 39443
A18: Clinic Collections | E18: 115299.31
A19: Company Collections | E19: 1726699.53
A20: Company Billing/Admin. Costs | E20: =E19*10% -> 172669.953
A22: Subtract Payroll Taxes Charged to Admin.
A23: Charge | E23: 0
A24: Charge | E24: 0
A26: Therapist Charges
A27: Jacob A Gabrielsen
A28: Ashley
A29: Ann
A30: Jessica Barker
A31: Bill
A32: Clay J Smith
A33: Clive D Mitchell
A34: Brian T Brooks
A36: FIGURING QUARTERLY PROFIT
A39: Preliminary Quarterly Profit (from Income Statement) | E39: =findprofit(LEFT(A1,FIND("-",A1)-2)) -> 18807.41
A40: Plus Accrued Retirement Expense | D40: ADD | E40: =AccruedRetirement(LEFT(A1,FIND("-",A1)-2)) -> 7787.52
A41: Total Commissions | D41: ADD | E41: =FindCommissions(LEFT(A1,FIND("-",A1)-2)) -> 51723
A42: Retirement (15% of Total Quarterly Wages) | D42: SUBTRACT | E42: =E16*15% -> 5916.45
A43: Clinic Collections / Company Collections | D43: x B & A Costs | E43: =E18/E19 -> 0.06677439126
A44: Share of Billing/Admin Cost | D44: SUBTRACT | E44: =E43*E20 -> 11529.931
A45: Total Payroll Taxes Charged to Admin. | D45: SUBTRACT | E45: =SUM(E23:E24) -> 0
A46: Total Therapist Charges | D46: SUBTRACT | E46: =SUM(E27:E34) -> 0
A47: Fitness Bonus | D47: ADD | E47: 0
A48: Quarterly Profit | E48: =SUM(E39:E41)-E42-SUM(E44:E46)+E47 -> 60871.549

Sheet MLPS
A1: Moses Lake - 3rd Quarter 2014
A7: Worksheet
A10: Employee | B10: Commissions | C10: Medical Ins. | D10: Quarterly Wages | E10: Total Quarterly Wages
A11: Steve S Roylance | B11: 100 | C11: =FindInsurance(A11) -> 1725 | E11: =D11-SUM(B11:C11) -> -1825
A12: David R Jensen | C12: =FindInsurance(A12) -> 1725 | E12: =D12-SUM(B12:C12) -> -1725
A13: Kathy L Lunderville | C13: =FindInsurance(A13) -> 1725 | E13: -1725
A14: Sulema C Mendoza | C14: =FindInsurance(A14) -> 1725 | E14: -1725
A16: Totals | B16: =SUM(B11:B14) -> 100 | C16: =SUM(C11:C14) -> 6900 | D16: =SUM(D11:D14) -> 0 | E16: =SUM(E11:E14) -> -7000
A18: Clinic Collections | E18: 150330.86
A19: Company Collections | E19: 1726699.53
A20: Company Billing/Admin. Costs | E20: =E19*10% -> 172669.953
A22: Subtract Payroll Taxes Charged to Admin.
A23: Charge
A24: Charge
A26: Therapist Charges
A27: Jacob A Gabrielsen
A28: Ashley
A29: Jessica Barker
A30: Clive D Mitchell
A31: David R Jensen
A32: Steve S Roylance
A36: FIGURING QUARTERLY PROFIT
A39: Preliminary Quarterly Profit (from Income Statement) | E39: =findprofit(LEFT(A1,FIND("-",A1)-2)) -> 26336.48
A40: Plus Accrued Retirement Expense | D40: ADD | E40: =AccruedRetirement(LEFT(A1,FIND("-",A1)-2)) -> 10998.38
A41: Total Commissions | D41: ADD | E41: =FindCommissions(LEFT(A1,FIND("-",A1)-2)) -> 100
A42: Retirement (15% of Total Quarterly Wages) | D42: SUBTRACT | E42: =E16*15% -> -1050
A43: Clinic Collections / Company Collections | D43: x B & A Costs | E43: =E18/E19 -> 0.08706254759
A44: Share of Billing/Admin Cost | D44: SUBTRACT | E44: =E43*E20 -> 15033.086
A45: Total Payroll Taxes Charged to Admin. | D45: SUBTRACT | E45: =SUM(E23:E24) -> 0
A46: Total Therapist Charges | D46: SUBTRACT | E46: =SUM(E27:E34) -> 0
A47: Fitness Bonus | D47: ADD | E47: 0
A48: Quarterly Profit | E48: =SUM(E39:E41)-E42-SUM(E44:E46)+E47 -> 23451.774

Sheet KennPS
A1: Kennewick - 3rd Quarter 2014
A7: Worksheet
A10: Employee | B10: Commissions | C10: Medical Ins. | D10: Quarterly Wages | E10: Total Quarterly Wages
A11: Kirk Holle | B11: 36063 | C11: =FindInsurance(A11) -> 1725 | D11: 56536 | E11: =D11-SUM(B11:C11) -> 18748
A12: Matthew D Pattillo | B12: 7646 | C12: =FindInsurance(A12) -> 1725 | D12: 28324 | E12: =D12-SUM(B12:C12) -> 18953
A13: Teresa L Miller | B13: 1458 | C13: =FindInsurance(A13) -> 1725 | D13: 13267 | E13: 10084
E14: 0
A16: Totals | B16: =SUM(B11:B15) -> 45167 | C16: =SUM(C11:C15) -> 5175 | D16: =SUM(D11:D15) -> 98127 | E16: =SUM(E11:E15) -> 47785
A18: Clinic Collections | E18: 104230.78
A19: Company Collections | E19: 1726699.53
A20: Company Billing/Admin. Costs | E20: =E19*10% -> 172669.953
A22: Subtract Payroll Taxes Charged to Admin.
A23: Charge | E23: 0
A24: Charge | E24: 0
A26: Therapist Charges
A27: Clay J Smith | E27: =IFERROR(INDEX([1]!Table1[Charge Amount],MATCH((LEFT($A$1,FIND(" - ",$A$1)-1)) &A27,[1]!Table1[Clinic]&[1]!Table1[Therapist Name],0),0),0) -> 0
A28: Bill | E28: =IFERROR(INDEX([1]!Table1[Charge Amount],MATCH((LEFT($A$1,FIND(" - ",$A$1)-1)) &A28,[1]!Table1[Clinic]&[1]!Table1[Therapist Name],0),0),0) -> 0
A29: Jacob A Gabrielsen | E29: =IFERROR(INDEX([1]!Table1[Charge Amount],MATCH((LEFT($A$1,FIND(" - ",$A$1)-1)) &A29,[1]!Table1[Clinic]&[1]!Table1[Therapist Name],0),0),0) -> 986
A30: Ann | E30: =IFERROR(INDEX([1]!Table1[Charge Amount],MATCH((LEFT($A$1,FIND(" - ",$A$1)-1)) &A30,[1]!Table1[Clinic]&[1]!Table1[Therapist Name],0),0),0) -> 0
A31: Clive D Mitchell | E31: =IFERROR(INDEX([1]!Table1[Charge Amount],MATCH((LEFT($A$1,FIND(" - ",$A$1)-1)) &A31,[1]!Table1[Clinic]&[1]!Table1[Therapist Name],0),0),0) -> 404
A32: Ashley | E32: =IFERROR(INDEX([1]!Table1[Charge Amount],MATCH((LEFT($A$1,FIND(" - ",$A$1)-1)) &A32,[1]!Table1[Clinic]&[1]!Table1[Therapist Name],0),0),0) -> 178
A33: Matthew D Pattillo | E33: =IFERROR(INDEX([1]!Table1[Charge Amount],MATCH((LEFT($A$1,FIND(" - ",$A$1)-1)) &A33,[1]!Table1[Clinic]&[1]!Table1[Therapist Name],0),0),0) -> -33
A34: Lacy L Torres | E34: =IFERROR(INDEX([1]!Table1[Charge Amount],MATCH((LEFT($A$1,FIND(" - ",$A$1)-1)) &A34,[1]!Table1[Clinic]&[1]!Table1[Therapist Name],0),0),0) -> 34
A35: Kirk Holle | E35: =IFERROR(INDEX([1]!Table1[Charge Amount],MATCH((LEFT($A$1,FIND(" - ",$A$1)-1)) &A35,[1]!Table1[Clinic]&[1]!Table1[Therapist Name],0),0),0) -> -2158
A37: FIGURING QUARTERLY PROFIT
A40: Preliminary Quarterly Profit (from Income Statement) | E40: =findprofit(LEFT(A1,FIND("-",A1)-2)) -> -36099.69
A41: Plus Accrued Retirement Expense | D41: ADD | E41: =AccruedRetirement(LEFT(A1,FIND("-",A1)-2)) -> 16397.56
A42: Total Commissions | D42: ADD | E42: =FindCommissions(LEFT(A1,FIND("-",A1)-2)) -> 45167
A43: Retirement (15% of Total Quarterly Wages) | D43: SUBTRACT | E43: =E16*15% -> 7167.75
A44: Clinic Collections / Company Collections | D44: x B & A Costs | E44: =E18/E19 -> 0.0603641677
A45: Share of Billing/Admin Cost | D45: SUBTRACT | E45: =E44*E20 -> 10423.078
A46: Total Payroll Taxes Charged to Admin. | D46: SUBTRACT | E46: =SUM(E23:E24) -> 0
A47: Total Therapist Charges | D47: SUBTRACT | E47: =SUM(E27:E35) -> -589
A48: Fitness Bonus | D48: ADD | E48: 0
A49: Quarterly Profit | E49: =SUM(E40:E42)-E43-SUM(E45:E47)+E48 -> 8463.042

Sheet OthPS
A1: Othello - 3rd Quarter 2014
A7: Worksheet
A10: Employee | B10: Commissions | C10: Medical Ins. | D10: Quarterly Wages | E10: Total Quarterly Wages
A11: Liliana Tovar | B11: 2661 | C11: =FindInsurance(A11) -> 1725 | D11: 13750 | E11: =D11-SUM(B11:C11) -> 9364
A12: Jessica Barker | B12: 6386 | C12: =FindInsurance(A12) -> 1725 | D12: 21429 | E12: =D12-SUM(B12:C12) -> 13318
A13: Kenneth C Jones | B13: 18700 | C13: 1725 | D13: 40545 | E13: 20120
E14: 0
A16: Totals | B16: =SUM(B11:B15) -> 27747 | C16: =SUM(C11:C15) -> 5175 | D16: =SUM(D11:D15) -> 75724 | E16: =SUM(E11:E15) -> 42802
A18: Clinic Collections | E18: 146828.43
A19: Company Collections | E19: 1726699.53
A20: Company Billing/Admin. Costs | E20: =E19*10% -> 172669.953
A22: Subtract Payroll Taxes Charged to Admin.
A23: Charge | E23: 0
A24: Charge | E24: 0
A26: Therapist Charges
A27: Clark D Heath
A28: Jessica Barker
A29: Clive D Mitchell
A30: Ashley
A31: Bill
A32: Kenneth C Jones
A33: Jacob A Gabrielsen
A37: FIGURING QUARTERLY PROFIT
A40: Preliminary Quarterly Profit (from Income Statement) | E40: =findprofit(LEFT(A1,FIND("-",A1)-2)) -> 39833.25
A41: Plus Accrued Retirement Expense | D41: ADD | E41: =AccruedRetirement(LEFT(A1,FIND("-",A1)-2)) -> 9355.36
A42: Total Commissions | D42: ADD | E42: =FindCommissions(LEFT(A1,FIND("-",A1)-2)) -> 27747
A43: Retirement (15% of Total Quarterly Wages) | D43: SUBTRACT | E43: =E16*15% -> 6420.3
A44: Clinic Collections / Company Collections | D44: x B & A Costs | E44: =E18/E19 -> 0.08503415183
A45: Share of Billing/Admin Cost | D45: SUBTRACT | E45: =E44*E20 -> 14682.843
A46: Total Payroll Taxes Charged to Admin. | D46: SUBTRACT | E46: =SUM(E23:E24) -> 0
A47: Total Therapist Charges | D47: SUBTRACT | E47: =SUM(E27:E35) -> 0
A48: Fitness Bonus | D48: ADD | E48: 0
A49: Quarterly Profit | E49: =SUM(E40:E42)-E43-SUM(E45:E47)+E48 -> 55832.467

Sheet RichPS
A1: Richland - 3rd Quarter 2014
A7: Worksheet
A10: Employee | B10: Commissions | C10: Medical Ins. | D10: Quarterly Wages | E10: Total Quarterly Wages
A11: Dale J Blatter | B11: 30841 | C11: =FindInsurance(A11) -> 1725 | D11: 51824 | E11: =D11-SUM(B11:C11) -> 19258
A12: V L Howell | B12: 3306 | C12: =FindInsurance(A12) -> 1725 | D12: 14320 | E12: =D12-SUM(B12:C12) -> 9289
A13: Kris | B13: 0 | C13: 0 | D13: 4816 | E13: 4816
A14: Michelle L Meyer | B14: 0 | C14: 1725 | D14: 3789 | E14: 2064
A16: Totals | B16: =SUM(B11:B15) -> 34147 | C16: =SUM(C11:C15) -> 5175 | D16: =SUM(D11:D15) -> 74749 | E16: =SUM(E11:E15) -> 35427
A18: Clinic Collections | E18: 156732.72
A19: Company Collections | E19: 1726699.53
A20: Company Billing/Admin. Costs | E20: =E19*10% -> 172669.953
A22: Subtract Payroll Taxes Charged to Admin.
A23: Charge | E23: 0
A24: Charge | E24: 0
A26: Therapist Charges
A27: Bill
A28: Clive D Mitchell
A29: Jacob A Gabrielsen
A30: Jessica Barker
A31: Dale J Blatter
A32: Clark D Heath
A33: Ashley
A37: FIGURING QUARTERLY PROFIT
A40: Preliminary Quarterly Profit (from Income Statement) | E40: =findprofit(LEFT(A1,FIND("-",A1)-2)) -> 36240.71
A41: Plus Accrued Retirement Expense | D41: ADD | E41: =AccruedRetirement(LEFT(A1,FIND("-",A1)-2)) -> 7642.76
A42: Total Commissions | D42: ADD | E42: =FindCommissions(LEFT(A1,FIND("-",A1)-2)) -> 34147
A43: Retirement (15% of Total Quarterly Wages) | D43: SUBTRACT | E43: =E16*15% -> 5314.05
A44: Clinic Collections / Company Collections | D44: x B & A Costs | E44: =E18/E19 -> 0.09077011795
A45: Share of Billing/Admin Cost | D45: SUBTRACT | E45: =E44*E20 -> 15673.272
A46: Total Payroll Taxes Charged to Admin. | D46: SUBTRACT | E46: =SUM(E23:E24) -> 0
A47: Total Therapist Charges | D47: SUBTRACT | E47: =SUM(E27:E35) -> 0
A48: Fitness Bonus | D48: ADD | E48: 0
A49: Quarterly Profit | E49: =SUM(E40:E42)-E43-SUM(E45:E47)+E48 -> 57043.148

Sheet GVPS
A1: Grandview - 3rd Quarter 2014
A7: Worksheet
A10: Employee | B10: Commissions | C10: Medical Ins. | D10: Quarterly Wages | E10: Total Quarterly Wages
A11: David A Bullock | B11: 22595 | C11: =FindInsurance(A11) -> 1725 | D11: 47484 | E11: =D11-SUM(B11:C11) -> 23164
A12: Bryan M Davis | B12: 10178 | C12: =FindInsurance(A12) -> 1725 | D12: 35289 | E12: 23386
A13: Guadalupe | B13: 0 | C13: 0 | D13: 4908 | E13: =D13-SUM(B13:C13) -> 4908
A14: Juliana | B14: 0 | C14: 0 | D14: 3990 | E14: =D14-SUM(B14:C14) -> 3990
A15: Christina Hurtado | B15: 3181 | C15: 1725 | D15: 13436 | E15: 8530
A16: Adilene | B16: 0 | C16: 0 | D16: 3921 | E16: 3921
A18: Totals | B18: =SUM(B11:B16) -> 35954 | C18: =SUM(C11:C16) -> 5175 | D18: =SUM(D11:D16) -> 109028 | E18: =SUM(E11:E17) -> 67899
A20: Clinic Collections | E20: 244575.22
A21: Company Collections | E21: 1726699.53
A22: Company Billing/Admin. Costs | E22: =E21*10% -> 172669.953
A24: Subtract Payroll Taxes Charged to Admin.
A25: Charge | E25: 0
A26: Charge | E26: 0
A28: Therapist Charges
A29: Bill
A30: Jacob A Gabrielsen
A31: Jessica Barker
A32: David A Bullock
A33: Clay J Smith
A34: Bryan M Davis
A35: Clive D Mitchell
A39: FIGURING QUARTERLY PROFIT
A42: Preliminary Quarterly Profit (from Income Statement) | E42: =findprofit(LEFT(A1,FIND("-",A1)-2)) -> 91925.05
A43: Plus Accrued Retirement Expense | D43: ADD | E43: =AccruedRetirement(LEFT(A1,FIND("-",A1)-2)) -> 12365.34
A44: Total Commissions | D44: ADD | E44: =FindCommissions(LEFT(A1,FIND("-",A1)-2)) -> 0
A45: Retirement (15% of Total Quarterly Wages) | D45: SUBTRACT | E45: =E18*15% -> 10184.85
A46: Clinic Collections / Company Collections | D46: x B & A Costs | E46: =E20/E21 -> 0.1416431844
A47: Share of Billing/Admin Cost | D47: SUBTRACT | E47: =E46*E22 -> 24457.522
A48: Total Payroll Taxes Charged to Admin. | D48: SUBTRACT | E48: =SUM(E25:E26) -> 0
A49: Total Therapist Charges | D49: SUBTRACT | E49: =SUM(E29:E37) -> 0
A50: Fitness Bonus | D50: ADD | E50: 0
A51: Quarterly Profit | E51: =SUM(E42:E44)-E45-SUM(E47:E49)+E50 -> 69648.018

Sheet CLPS
A1: Clarkston - 3rd Quarter 2014
A7: Worksheet
A10: Employee | B10: Commissions | C10: Medical Ins. | D10: Quarterly Wages | E10: Total Quarterly Wages
A11: Seker Medavarapa | B11: 15086 | C11: =FindInsurance(A11) -> 1725 | D11: 39631 | E11: =D11-SUM(B11:C11) -> 22820
A12: Catherine L Nieves | B12: 1509 | C12: =FindInsurance(A12) -> 1725 | D12: 10390 | E12: 7156
A13: Hendriati | B13: 377 | C13: 0 | D13: 4556 | E13: =D13-SUM(B13:C13) -> 4179
A16: Totals | B16: =SUM(B11:B14) -> 16972 | C16: =SUM(C11:C14) -> 3450 | D16: =SUM(D11:D14) -> 54577 | E16: =SUM(E11:E15) -> 34155
A18: Clinic Collections | E18: 111906.71
A19: Company Collections | E19: 1726699.53
A20: Company Billing/Admin. Costs | E20: =E19*10% -> 172669.953
A22: Subtract Payroll Taxes Charged to Admin.
A23: Charge | E23: 0
A24: Charge | E24: 0
A26: Therapist Charges
A27: Seker Medavarapa
A28: David R Jensen
A29: Clark D Heath
A30: Bill
A31: Jacob A Gabrielsen
A37: FIGURING QUARTERLY PROFIT
A40: Preliminary Quarterly Profit (from Income Statement) | E40: =findprofit(LEFT(A1,FIND("-",A1)-2)) -> 16446.04
A41: Plus Accrued Retirement Expense | D41: ADD | E41: =AccruedRetirement(LEFT(A1,FIND("-",A1)-2)) -> 6208.73
A42: Total Commissions | D42: ADD | E42: =FindCommissions(LEFT(A1,FIND("-",A1)-2)) -> 16972
A43: Retirement (15% of Total Quarterly Wages) | D43: SUBTRACT | E43: =E16*15% -> 5123.25
A44: Clinic Collections / Company Collections | D44: x B & A Costs | E44: =E18/E19 -> 0.0648096024
A45: Share of Billing/Admin Cost | D45: SUBTRACT | E45: =E44*E20 -> 11190.671
A46: Total Payroll Taxes Charged to Admin. | D46: SUBTRACT | E46: =SUM(E23:E24) -> 0
A47: Total Therapist Charges | D47: SUBTRACT | E47: =SUM(E27:E35) -> 0
A48: Fitness Bonus | D48: ADD | E48: 0
A49: Quarterly Profit | E49: =SUM(E40:E42)-E43-SUM(E45:E47)+E48 -> 23312.849

Sheet MFPS
A1: Milton Freewater - 3rd Quarter 2014
A7: Worksheet
A10: Employee | B10: Commissions | C10: Medical Ins. | D10: Quarterly Wages | E10: Total Quarterly Wages
A11: Korey L Zbaraschuk | B11: 0 | C11: =FindInsurance(A11) -> 1725 | D11: 26871 | E11: =D11-SUM(B11:C11) -> 25146
A12: Meghan E Rambo | B12: 0 | C12: =FindInsurance(A12) -> 1725 | D12: 14482 | E12: =D12-SUM(B12:C12) -> 12757
A18: Totals | B18: =SUM(B11:B16) -> 0 | C18: =SUM(C11:C16) -> 3450 | D18: =SUM(D11:D16) -> 41353 | E18: =SUM(E11:E17) -> 37903
A20: Clinic Collections | E20: 137690.05
A21: Company Collections | E21: 1726699.53
A22: Company Billing/Admin. Costs | E22: =E21*10% -> 172669.953
A24: Subtract Payroll Taxes Charged to Admin.
A25: Charge | E25: 0
A26: Charge | E26: 0
A28: Therapist Charges
A29: Jacob A Gabrielsen
A30: Gary W Chapton
A31: Clay J Smith
A32: Justin L Kitchen
A33: Randy D Castleman
A34: Bill
A39: FIGURING QUARTERLY PROFIT
A42: Preliminary Quarterly Profit (from Income Statement) | E42: =findprofit(LEFT(A1,FIND("-",A1)-2)) -> 27649.34
A43: Plus Accrued Retirement Expense | D43: ADD | E43: =AccruedRetirement(LEFT(A1,FIND("-",A1)-2)) -> -662.72
A44: Total Commissions | D44: ADD | E44: =FindCommissions(LEFT(A1,FIND("-",A1)-2)) -> 0
A45: Retirement (15% of Total Quarterly Wages) | D45: SUBTRACT | E45: =E18*15% -> 5685.45
A46: Clinic Collections / Company Collections | D46: x B & A Costs | E46: =E20/E21 -> 0.07974175449
A47: Share of Billing/Admin Cost | D47: SUBTRACT | E47: =E46*E22 -> 13769.005
A48: Total Payroll Taxes Charged to Admin. | D48: SUBTRACT | E48: =SUM(E25:E26) -> 0
A49: Total Therapist Charges | D49: SUBTRACT | E49: =SUM(E29:E37) -> 0
A50: Fitness Bonus | D50: ADD | E50: 0
A51: Quarterly Profit | E51: =SUM(E42:E44)-E45-SUM(E47:E49)+E50 -> 7532.165

Sheet BCPS
A1: Benton City - 3rd Quarter 2014
A7: Worksheet
A10: Employee | B10: Commissions | C10: Medical Ins. | D10: Quarterly Wages | E10: Total Quarterly Wages
A11: Carter A Lake | B11: 0 | C11: =FindInsurance(A11) -> 1725 | D11: 20704 | E11: =D11-SUM(B11:C11) -> 18979
A12: Carol | B12: 0 | C12: =FindInsurance(A12) -> 0 | D12: 3677 | E12: 3677
A13: Lacy L Torres | B13: 0 | C13: =FindInsurance(A13) -> 1725 | D13: 7584 | E13: 5859
A18: Totals | B18: =SUM(B11:B16) -> 0 | C18: =SUM(C11:C16) -> 3450 | D18: =SUM(D11:D16) -> 31965 | E18: =SUM(E11:E17) -> 28515
A20: Clinic Collections | E20: 57272.13
A21: Company Collections | E21: 1726699.53
A22: Company Billing/Admin. Costs | E22: =E21*10% -> 172669.953
A24: Subtract Payroll Taxes Charged to Admin.
A25: Charge | E25: 0
A26: Charge | E26: 0
A28: Therapist Charges
A29: Jacob A Gabrielsen
A30: Lacy L Torres
A31: Carter A Lake
A32: Bill
A33: Clay J Smith
A34: Kirk Holle
A39: FIGURING QUARTERLY PROFIT
A42: Preliminary Quarterly Profit (from Income Statement) | E42: =findprofit(LEFT(A1,FIND("-",A1)-2)) -> 14287.2
A43: Plus Accrued Retirement Expense | D43: ADD | E43: =AccruedRetirement(LEFT(A1,FIND("-",A1)-2)) -> 430.72
A44: Total Commissions | D44: ADD | E44: =FindCommissions(LEFT(A1,FIND("-",A1)-2)) -> 0
A45: Retirement (15% of Total Quarterly Wages) | D45: SUBTRACT | E45: =E18*15% -> 4277.25
A46: Clinic Collections / Company Collections | D46: x B & A Costs | E46: =E20/E21 -> 0.03316855597
A47: Share of Billing/Admin Cost | D47: SUBTRACT | E47: =E46*E22 -> 5727.213
A48: Total Payroll Taxes Charged to Admin. | D48: SUBTRACT | E48: =SUM(E25:E26) -> 0
A49: Total Therapist Charges | D49: SUBTRACT | E49: =SUM(E29:E37) -> 0
A50: Fitness Bonus | D50: ADD | E50: 0
A51: Quarterly Profit | E51: =SUM(E42:E44)-E45-SUM(E47:E49)+E50 -> 4713.457
A52: 1st Quarter Loss | E52: -3283
A53: Net Quarterly Profit/Loss | E53: =E51+E52 -> 1430.457

Sheet SanPS
A1: Santiam - 3rd Quarter 2014
A7: Worksheet
A10: Employee | B10: Commissions | C10: Medical Ins. | D10: Quarterly Wages | E10: Total Quarterly Wages
A11: Brian J Corbett | B11: 19529 | C11: =FindInsurance(A11) -> 1725 | D11: 39088 | E11: =D11-SUM(B11:C11) -> 17834
A12: Jared K Hodgson | B12: 6494 | C12: =FindInsurance(A12) -> 1725 | D12: 27311 | E12: 19092
A13: Sheri S Matz | B13: 2029 | C13: =FindInsurance(A13) -> 1725 | D13: 10745 | E13: 6991
A14: Vicki | B14: 0 | C14: 0 | D14: 3174 | E14: =D14-SUM(B14:C14) -> 3174
A18: Totals | B18: =SUM(B11:B16) -> 28052 | C18: =SUM(C11:C16) -> 5175 | D18: =SUM(D11:D16) -> 80318 | E18: =SUM(E11:E17) -> 47091
A20: Clinic Collections | E20: 128544.26
A21: Company Collections | E21: 1726699.53
A22: Company Billing/Admin. Costs | E22: =E21*10% -> 172669.953
A24: Subtract Payroll Taxes Charged to Admin.
A25: Charge | E25: 0
A26: Charge | E26: 0
A28: Therapist Charges
A29: Brian J Corbett
A30: Jacob A Gabrielsen
A31: David R Jensen
A32: Jared K Hodson
A39: FIGURING QUARTERLY PROFIT
A42: Preliminary Quarterly Profit (from Income Statement) | E42: =findprofit(LEFT(A1,FIND("-",A1)-2)) -> 17018.71
A43: Plus Accrued Retirement Expense | D43: ADD | E43: =AccruedRetirement(LEFT(A1,FIND("-",A1)-2)) -> 9836.59
A44: Total Commissions | D44: ADD | E44: =FindCommissions(LEFT(A1,FIND("-",A1)-2)) -> 0
A45: Retirement (15% of Total Quarterly Wages) | D45: SUBTRACT | E45: =E18*15% -> 7063.65
A46: Clinic Collections / Company Collections | D46: x B & A Costs | E46: =E20/E21 -> 0.07444506573
A47: Share of Billing/Admin Cost | D47: SUBTRACT | E47: =E46*E22 -> 12854.426
A48: Total Payroll Taxes Charged to Admin. | D48: SUBTRACT | E48: =SUM(E25:E26) -> 0
A49: Total Therapist Charges | D49: SUBTRACT | E49: =SUM(E29:E37) -> 0
A50: Fitness Bonus | D50: ADD | E50: 0
A51: Quarterly Profit | E51: =SUM(E42:E44)-E45-SUM(E47:E49)+E50 -> 6937.224

Sheet MerPS
A1: Meridian - 3rd Quarter 2014
A7: Worksheet
A10: Employee | B10: Commissions | C10: Medical Ins. | D10: Quarterly Wages | E10: Total Quarterly Wages
A11: Douglas B Simpson | B11: 12990 | C11: =FindInsurance(A11) -> 1725 | D11: 36725 | E11: =D11-SUM(B11:C11) -> 22010
A12: Brett A Pierce | B12: 7029 | C12: =FindInsurance(A12) -> 1725 | D12: 34893 | E12: 26139
A13: Gisele C Pope | B13: 1911 | C13: 1725 | D13: 12211 | E13: 8575
A14: Sally A Weiskircher | B14: 0 | C14: 1725 | D14: 7071 | E14: =D14-SUM(B14:C14) -> 5346
A18: Totals | B18: =SUM(B11:B16) -> 21930 | C18: =SUM(C11:C16) -> 6900 | D18: =SUM(D11:D16) -> 90900 | E18: =SUM(E11:E17) -> 62070
A20: Clinic Collections | E20: 155162.99
A21: Company Collections | E21: 1726699.53
A22: Company Billing/Admin. Costs | E22: =E21*10% -> 172669.953
A24: Subtract Payroll Taxes Charged to Admin.
A25: Charge | E25: 0
A26: Charge | E26: 0
A28: Therapist Charges
A29: Douglas B Simpson
A30: Jacob A Gabrielsen
A31: Courtney
A32: Heather R Short
A33: Brett A Pierce
A39: FIGURING QUARTERLY PROFIT
A42: Preliminary Quarterly Profit (from Income Statement) | E42: =findprofit(LEFT(A1,FIND("-",A1)-2)) -> 23578.73
A43: Plus Accrued Retirement Expense | D43: ADD | E43: =AccruedRetirement(LEFT(A1,FIND("-",A1)-2)) -> 13151.24
A44: Total Commissions | D44: ADD | E44: =FindCommissions(LEFT(A1,FIND("-",A1)-2)) -> 0
A45: Retirement (15% of Total Quarterly Wages) | D45: SUBTRACT | E45: =E18*15% -> 9310.5
A46: Clinic Collections / Company Collections | D46: x B & A Costs | E46: =E20/E21 -> 0.08986102521
A47: Share of Billing/Admin Cost | D47: SUBTRACT | E47: =E46*E22 -> 15516.299
A48: Total Payroll Taxes Charged to Admin. | D48: SUBTRACT | E48: =SUM(E25:E26) -> 0
A49: Total Therapist Charges | D49: SUBTRACT | E49: =SUM(E29:E37) -> 0
A50: Fitness Bonus | D50: ADD | E50: 0
A51: Quarterly Profit | E51: =SUM(E42:E44)-E45-SUM(E47:E49)+E50 -> 11903.171

Sheet HermPS
A1: Hermiston - 3rd Quarter 2014
A7: Worksheet
A10: Employee | B10: Commissions | C10: Medical Ins. | D10: Quarterly Wages | E10: Total Quarterly Wages
A11: Justin L Kitchen | B11: 2831 | C11: =FindInsurance(A11) -> 1725 | D11: 19886 | E11: =D11-SUM(B11:C11) -> 15330
A12: Chad | B12: 0 | C12: =FindInsurance(A12) -> 0 | D12: =IF(COUNTIF([1]Inputs!$G:$G,'[1]Accumulated Profit Sharing'!#REF!)>0,MedInsurance,0) ->  | E12: =D12-SUM(B12:C12) -> 
A13: Employee | B13: 0 | C13: 0 | D13: =IF(COUNTIF([1]Inputs!$G:$G,'[1]Accumulated Profit Sharing'!#REF!)>0,MedInsurance,0) -> 
A14: Employee | B14: 0 | C14: 0 | D14: =IF(COUNTIF([1]Inputs!$G:$G,'[1]Accumulated Profit Sharing'!#REF!)>0,MedInsurance,0) -> 
A15: Employee | B15: 0 | C15: 0 | D15: =IF(COUNTIF([1]Inputs!$G:$G,'[1]Accumulated Profit Sharing'!#REF!)>0,MedInsurance,0) -> 
A16: Totals | B16: =SUM(B11:B15) -> 2831 | C16: =SUM(C11:C15) -> 1725 | D16: =SUM(D11:D15) ->  | E16: =SUM(E11:E15) -> 
A18: Clinic Collections | E18: 49668.03
A19: Company Collections | E19: 1726699.53
A20: Company Billing/Admin. Costs | E20: =E19*10% -> 172669.953
A22: Subtract Payroll Taxes Charged to Admin.
A23: Charge | E23: 0
A24: Charge | E24: 0
A26: Therapist Charges
A27: Justin
A28: Jacob
A36: FIGURING QUARTERLY PROFIT
A39: Preliminary Quarterly Profit (from Income Statement) | E39: =findprofit(LEFT(A1,FIND("-",A1)-2)) -> 6865.1
A40: Plus Accrued Retirement Expense | D40: ADD | E40: =AccruedRetirement(LEFT(A1,FIND("-",A1)-2)) -> 2916.26
A41: Total Commissions | D41: ADD | E41: =FindCommissions(LEFT(A1,FIND("-",A1)-2)) -> 2831
A42: Retirement (15% of Total Quarterly Wages) | D42: SUBTRACT | E42: =E16*0.15 -> 
A43: Clinic Collections / Company Collections | D43: x B & A Costs | E43: =E18/E19 -> 0.02876472087
A44: Share of Billing/Admin Cost | D44: SUBTRACT | E44: =E43*E20 -> 4966.803
A45: Total Payroll Taxes Charged to Admin. | D45: SUBTRACT | E45: =SUM(E23:E24) -> 0
A46: Total Therapist Charges | D46: SUBTRACT | E46: =SUM(E27:E28) -> 0
A47: Fitness Bonus | D47: ADD | E47: 0
A48: Quarterly Profit | E48: =SUM(E39:E41)-E42-SUM(E44:E46)+E47 -> 

Sheet WRPS
A1: West Richland - 3rd Quarter 2014
A7: Worksheet
A10: Employee | B10: Commissions | C10: Medical Ins. | D10: Quarterly Wages | E10: Total Quarterly Wages
A11: Rodney Scrimsher | B11: 22394 | C11: =FindInsurance(A11) -> 1725 | D11: 45332 | E11: =D11-SUM(B11:C11) -> 21213
A16: Totals | B16: =SUM(B11:B15) -> 22394 | C16: =SUM(C11:C15) -> 1725 | D16: =SUM(D11:D15) -> 45332 | E16: =SUM(E11:E15) -> 21213
A18: Clinic Collections | E18: 92895.32
A19: Company Collections | E19: 1726699.53
A20: Company Billing/Admin. Costs | E20: =E19*10% -> 172669.953
A22: Subtract Payroll Taxes Charged to Admin.
A23: Charge | E23: 0
A24: Charge | E24: 0
A26: Therapist Charges
A27: Clay J Smith
A28: Rodney Scrimsher
A29: Jessica Barker
A30: Jacob T Parsons
A31: Clive D Mitchell
A32: Bill
A37: FIGURING QUARTERLY PROFIT
A40: Preliminary Quarterly Profit (from Income Statement) | E40: =findprofit(LEFT(A1,FIND("-",A1)-2)) -> 11736.73
A41: Plus Accrued Retirement Expense | D41: ADD | E41: =AccruedRetirement(LEFT(A1,FIND("-",A1)-2)) -> 3145.8
A42: Total Commissions | D42: ADD | E42: =FindCommissions(LEFT(A1,FIND("-",A1)-2)) -> 22394
A43: Retirement (15% of Total Quarterly Wages) | D43: SUBTRACT | E43: =E16*15% -> 3181.95
A44: Clinic Collections / Company Collections | D44: x B & A Costs | E44: =E18/E19 -> 0.05379935443
A45: Share of Billing/Admin Cost | D45: SUBTRACT | E45: =E44*E20 -> 9289.532
A46: Total Payroll Taxes Charged to Admin. | D46: SUBTRACT | E46: =SUM(E23:E24) -> 0
A47: Total Therapist Charges | D47: SUBTRACT | E47: =SUM(E27:E35) -> 0
A48: Fitness Bonus | D48: ADD | E48: 0
A49: Quarterly Profit | E49: =SUM(E40:E42)-E43-SUM(E45:E47)+E48 -> 24805.048

Sheet NamPS
A1: Nampa - 3rd Quarter 2014
A7: Worksheet
A10: Employee | B10: Commissions | C10: Medical Ins. | D10: Quarterly Wages | E10: Total Quarterly Wages
A11: Jacob A Gabrielsen | B11: 4534 | C11: =FindInsurance(A11) -> 1725 | D11: 31148 | E11: =D11-SUM(B11:C11) -> 24889
A12: Paula Gratiot | B12: 379 | C12: =FindInsurance(A12) -> 0 | D12: 3393 | E12: 3014
A13: Heather R Short | B13: 379 | C13: 1725 | D13: 7336 | E13: 5232
A18: Totals | B18: =SUM(B11:B16) -> 5292 | C18: =SUM(C11:C16) -> 3450 | D18: =SUM(D11:D16) -> 41877 | E18: =SUM(E11:E17) -> 33135
A20: Clinic Collections | E20: 75562.72
A21: Company Collections | E21: 1726699.53
A22: Company Billing/Admin. Costs | E22: =E21*10% -> 172669.953
A24: Subtract Payroll Taxes Charged to Admin.
A25: Charge | E25: 0
A26: Charge | E26: 0
A28: Therapist Charges
A29: Brett A Pierce
A30: Paula Gratiot
A31: Heather R Short
A32: Jacob A Gabrielsen
A39: FIGURING QUARTERLY PROFIT
A42: Preliminary Quarterly Profit (from Income Statement) | E42: =findprofit(LEFT(A1,FIND("-",A1)-2)) -> 
A43: Plus Accrued Retirement Expense | D43: ADD | E43: =AccruedRetirement(LEFT(A1,FIND("-",A1)-2)) -> 2813.84
A44: Total Commissions | D44: ADD | E44: =FindCommissions(LEFT(A1,FIND("-",A1)-2)) -> 0
A45: Retirement (15% of Total Quarterly Wages) | D45: SUBTRACT | E45: =E18*15% -> 4970.25
A46: Clinic Collections / Company Collections | D46: x B & A Costs | E46: =E20/E21 -> 0.04376136015
A47: Share of Billing/Admin Cost | D47: SUBTRACT | E47: =E46*E22 -> 7556.272
A48: Total Payroll Taxes Charged to Admin. | D48: SUBTRACT | E48: =SUM(E25:E26) -> 0
A49: Total Therapist Charges | D49: SUBTRACT | E49: =SUM(E29:E37) -> 0
A50: Fitness Bonus | D50: ADD | E50: 0
A51: Quarterly Profit | E51: =SUM(E42:E44)-E45-SUM(E47:E49)+E50 -> 

Sheet ML.KH
A1: Revenue-Cash Basis | B1: 0 | C1: 0 | D1: 0 | E1: 0
A2: Professional Fees-Moses Lake | B2: 150149.27 | C2: 142878.47 | D2: 7270.8 | E2: 5.088800293
A3: Other Income-Moses Lake | B3: 200 | C3: 1420.03 | D3: -1220.03 | E3: -85.91579051
A4: Report Fees-Moses Lake | B4: 1196.07 | C4: 543.28 | D4: 652.79 | E4: 120.1571933
A5: Retail Sales-Moses Lake | B5: 1151.48 | C5: 721.5 | D5: 429.98 | E5: 59.5952876
A6: (Refunds)Overpayments-M/L | B6: -181.59 | C6: -40.03 | D6: -141.56 | E6: -353.6347739
A7: TOTAL Revenue-Cash Basis | B7: 152515.23 | C7: 145523.25 | D7: 6991.98 | E7: 4.804716772
A8: NET REVENUE | B8: 152515.23 | C8: 145523.25 | D8: 6991.98 | E8: 4.804716772
A9: GROSS PROFIT | B9: 152515.23 | C9: 145523.25 | D9: 6991.98 | E9: 4.804716772
A10: Expenses | B10: 0 | C10: 0 | D10: 0 | E10: 0
A11: Payroll, taxes and benefits | B11: 0 | C11: 0 | D11: 0 | E11: 0
A12: Salaries-PT-Moses Lake | B12: 39340.06 | C12: 38603.04 | D12: -737.02 | E12: -1.909227874
A13: COMM PT - MOSES LAKE | B13: 14163 | C13: 15456.9 | D13: 1293.9 | E13: 8.371018768
A14: COMM - OFF | B14: 1087 | C14: 1499.55 | D14: 412.55 | E14: 27.51158681
A15: Salaries-Office-Moses Lake | B15: 17551.62 | C15: 14245.71 | D15: -3305.91 | E15: -23.20635476
A16: Payroll Taxes-Moses lake | B16: 6659.37 | C16: 6653.61 | D16: -5.76 | E16: -0.08656954646
A17: Additional Compensation-Moses Lake | B17: 6900 | C17: 6900 | D17: 0 | E17: 0
A18: Retirement Plan Contribution - ML | B18: 10998.38 | C18: 9521.22 | D18: -1477.16 | E18: -15.51439836
A19: TOTAL Payroll, taxes and benefits | B19: 96699.43 | C19: 92880.03 | D19: -3819.4 | E19: -4.112186441
A20: Rent-Moses Lake | B20: 11400 | C20: 11400 | D20: 0 | E20: 0
A21: Office Exp-Moses Lake | B21: 2345.13 | C21: 2075.53 | D21: -269.6 | E21: -12.9894533
A22: Web PT - Moses Lake | B22: 628 | C22: 627.75 | D22: -0.25 | E22: -0.03982477101
A23: Postage-Moses Lake | B23: 200 | C23: 226.97 | D23: 26.97 | E23: 11.88262766
A24: Telephone and Internet-Moses Lake | B24: 755.64 | C24: 1250.53 | D24: 494.89 | E24: 39.57442045
A25: Utilities-Moses Lake | B25: 816.13 | C25: 988.5 | D25: 172.37 | E25: 17.43753161
A26: Repair & Maint-Moses Lake | B26: 643.59 | C26: 215.25 | D26: -428.34 | E26: -198.9965157
A27: Mileage-Moses Lake | B27: 323.31 | C27: 542.53 | D27: 219.22 | E27: 40.4069821
A28: Depreciation-Moses Lake | B28: 2406.95 | C28: 2300.25 | D28: -106.7 | E28: -4.638626236
A29: Advertising-Moses Lake | B29: 2464.1 | C29: 2436.75 | D29: -27.35 | E29: -1.122396635
A30: PT Supplies-Moses Lake | B30: 1942.45 | C30: 2394 | D30: 451.55 | E30: 18.86173768
A31: Education Exp-Steve Roylance | B31: 786.48 | C31: 696 | D31: -90.48 | E31: -13
A32: David Jensen - Cont Educ | B32: 445 | C32: 667.78 | D32: 222.78 | E32: 33.36128665
A33: Dues & Subscriptions-M/L | B33: 273.7 | C33: 185.72 | D33: -87.98 | E33: -47.37238854
A34: Insurance-General-Moses Lake | B34: 1070.95 | C34: 121.97 | D34: -948.98 | E34: -778.0437813
A35: Insurance-Malpractice-M/L | B35: 0 | C35: 195.75 | D35: 195.75 | E35: 100
A36: Licenses-Moses Lake | B36: 0 | C36: 19.97 | D36: 19.97 | E36: 100
A37: State Excise Tax-Moses Lake | B37: 2586.25 | C37: 2871.28 | D37: 285.03 | E37: 9.926931543
A38: Property tax-Moses Lake | B38: 0 | C38: 69.75 | D38: 69.75 | E38: 100
A39: TOTAL Expenses | B39: 125787.11 | C39: 122166.31 | D39: -3620.8 | E39: -2.963828571
A40: OPERATING PROFIT | B40: 26728.12 | C40: 23356.94 | D40: 3371.18 | E40: 14.4333119
A41: Other Income & Expenses | B41: 0 | C41: 0 | D41: 0 | E41: 0
A42: Interest Income-Moses Lake | B42: 1.16 | C42: 4.5 | D42: -3.34 | E42: -74.22222222
A43: Bank Charge-Moses Lake | B43: -392.8 | C43: -268.5 | D43: -124.3 | E43: -46.29422719
A44: TOTAL Other Income & Expenses | B44: -391.64 | C44: -264 | D44: -127.64 | E44: -48.34848485
A45: PROFIT BEFORE TAXES | B45: 26336.48 | C45: 23092.94 | D45: 3243.54 | E45: 14.04559142
A46: NET PROFIT | B46: 26336.48 | C46: 23092.94 | D46: 3243.54 | E46: 14.04559142

Sheet P.KH
A1: Revenue-Cash Basis | B1: 0 | C1: 0 | D1: 0 | E1: 0
A2: Professional Fees-Pasco | B2: 115299.31 | C2: 156482.53 | D2: -41183.22 | E2: -26.31809442
A3: Other Income-Pasco | B3: 660.5 | C3: 546 | D3: 114.5 | E3: 20.97069597
A4: Report Fees-Pasco | B4: 64.08 | C4: 490.5 | D4: -426.42 | E4: -86.93577982
A5: Retail Sales - Pasco | B5: 0 | C5: 119.25 | D5: -119.25 | E5: -100
A6: (Refunds)Overpayments-Pasco | B6: 0 | C6: -79.78 | D6: 79.78 | E6: 100
A7: TOTAL Revenue-Cash Basis | B7: 116023.89 | C7: 157558.5 | D7: -41534.61 | E7: -26.36138958
A8: NET REVENUE | B8: 116023.89 | C8: 157558.5 | D8: -41534.61 | E8: -26.36138958
A9: GROSS PROFIT | B9: 116023.89 | C9: 157558.5 | D9: -41534.61 | E9: -26.36138958
A10: Expenses | B10: 0 | C10: 0 | D10: 0 | E10: 0
A11: Payroll, taxes and benefits | B11: 0 | C11: 0 | D11: 0 | E11: 0
A12: Salaries-PT-Pasco | B12: 30139.77 | C12: 34187.67 | D12: 4047.9 | E12: 11.84023363
A13: Comm - PT | B13: 16456 | C13: 30913.8 | D13: 14457.8 | E13: 46.76811004
A14: COMM - OFF | B14: 991 | C14: 2307 | D14: 1316 | E14: 57.0437798
A15: Salaries-Office-Pasco | B15: 12679.83 | C15: 11944.02 | D15: -735.81 | E15: -6.16048868
A16: Payroll Taxes-Pasco | B16: 3755.88 | C16: 6486.36 | D16: 2730.48 | E16: 42.09572087
A17: Medical Insurance-Pasco | B17: 5175 | C17: 5175 | D17: 0 | E17: 0
A18: Retirement Plan Contribution - P | B18: 7787.52 | C18: 10636.2 | D18: 2848.68 | E18: 26.78287358
A19: TOTAL Payroll, taxes and benefits | B19: 76985 | C19: 101650.05 | D19: 24665.05 | E19: 24.2646708
A20: Rent-Pasco | B20: 11400 | C20: 11400 | D20: 0 | E20: 0
A21: Office Exp-Pasco | B21: 853.49 | C21: 898.97 | D21: 45.48 | E21: 5.059123219
A22: Web PT - Pasco | B22: 528 | C22: 702.75 | D22: 174.75 | E22: 24.86659552
A23: Postage-Pasco | B23: 55.7 | C23: 166.03 | D23: 110.33 | E23: 66.45184605
A24: Telephone and Internet-Pasco | B24: 1060.48 | C24: 664.97 | D24: -395.51 | E24: -59.47787118
A25: Utilities-Pasco | B25: 738.09 | C25: 861.28 | D25: 123.19 | E25: 14.30313022
A26: Laundry & Clean-Pasco | B26: 0 | C26: 115.97 | D26: 115.97 | E26: 100
A27: Repair & Maint-Pasco | B27: 398.45 | C27: 264.28 | D27: -134.17 | E27: -50.76812472
A28: Mileage-Pasco | B28: 75.79 | C28: 94.22 | D28: 18.43 | E28: 19.56060284
A29: Depreciation-Pasco | B29: 904.98 | C29: 606.47 | D29: -298.51 | E29: -49.22090128
A30: Advertising-Pasco | B30: 728.87 | C30: 1027.03 | D30: 298.16 | E30: 29.03128438
A31: PT Supplies-Pasco | B31: 231.02 | C31: 558 | D31: 326.98 | E31: 58.59856631
A32: Education Exp-Brian Brooks | B32: 75 | C32: 862.5 | D32: 787.5 | E32: 91.30434783
A33: Education Exp-Clay Smith | B33: 505 | C33: 862.5 | D33: 357.5 | E33: 41.44927536
A34: Dues & Subscriptions-Pasco | B34: 0 | C34: 175.78 | D34: 175.78 | E34: 100
A35: Insurance-General-Pasco | B35: 817.52 | C35: 107.72 | D35: -709.8 | E35: -658.9305607
A36: Insurance-malpractice-Pasco | B36: 0 | C36: 195.75 | D36: 195.75 | E36: 100
A37: Licenses-Pasco | B37: 0 | C37: 26.25 | D37: 26.25 | E37: 100
A38: State Excise Tax-Pasco | B38: 1807.98 | C38: 2847.47 | D38: 1039.49 | E38: 36.50574018
A39: Property Tax-Pasco | B39: 0 | C39: 47.72 | D39: 47.72 | E39: 100
A40: TOTAL Expenses | B40: 97165.37 | C40: 124135.71 | D40: 26970.34 | E40: 21.72649595
A41: OPERATING PROFIT | B41: 18858.52 | C41: 33422.79 | D41: -14564.27 | E41: -43.57586545
A42: Other Income & Expenses | B42: 0 | C42: 0 | D42: 0 | E42: 0
A43: Interest Income-Pasco | B43: 0 | C43: 21 | D43: -21 | E43: -100
A44: Bank Charge-Pasco | B44: -51.11 | C44: -189 | D44: 137.89 | E44: 72.95767196
A45: TOTAL Other Income & Expenses | B45: -51.11 | C45: -168 | D45: 116.89 | E45: 69.57738095
A46: PROFIT BEFORE TAXES | B46: 18807.41 | C46: 33254.79 | D46: -14447.38 | E46: -43.44450829
A47: NET PROFIT | B47: 18807.41 | C47: 33254.79 | D47: -14447.38 | E47: -43.44450829

Sheet K.KH
A1: Revenue-Cash Basis | B1: 0 | C1: 0 | D1: 0 | E1: 0
A2: Professional Fees-Kennewick | B2: 104230.78 | C2: 137283.28 | D2: -33052.5 | E2: -24.0761293
A3: Other Income-Kennewick | B3: 1825 | C3: 2316.47 | D3: -491.47 | E3: -21.21633347
A4: Report Fees-Kennewick | B4: 506.21 | C4: 283.78 | D4: 222.43 | E4: 78.38114032
A5: Retail Sales - Kennewick | B5: 36.24 | C5: 66.47 | D5: -30.23 | E5: -45.47916353
A6: (Refunds)Overpayment-Kennewick | B6: 0 | C6: -25.03 | D6: 25.03 | E6: 100
A7: TOTAL Revenue-Cash Basis | B7: 106598.23 | C7: 139924.97 | D7: -33326.74 | E7: -23.81757881
A8: NET REVENUE | B8: 106598.23 | C8: 139924.97 | D8: -33326.74 | E8: -23.81757881
A9: GROSS PROFIT | B9: 106598.23 | C9: 139924.97 | D9: -33326.74 | E9: -23.81757881
A10: Expenses | B10: 0 | C10: 0 | D10: 0 | E10: 0
A11: Payroll, taxes and benefits | B11: 0 | C11: 0 | D11: 0 | E11: 0
A12: Salaries-PT-Kennewick | B12: 33622.22 | C12: 35455.35 | D12: 1833.13 | E12: 5.170249342
A13: Comm - PT | B13: 44022 | C13: 31836.6 | D13: -12185.4 | E13: -38.27481578
A14: COMM - OFF | B14: 1764 | C14: 2307 | D14: 543 | E14: 23.53706112
A15: Salaries-Office-Kennewick | B15: 17031.11 | C15: 13707.27 | D15: -3323.84 | E15: -24.24873808
A16: Payroll Taxes-Kennewick | B16: 5236.93 | C16: 6994.83 | D16: 1757.9 | E16: 25.13141849
A17: Medical Insurance-Kennewick | B17: 5175 | C17: 5175 | D17: 0 | E17: 0
A18: Retirement Plan Contribution - K | B18: 16397.56 | C18: 10860.42 | D18: -5537.14 | E18: -50.98458439
A19: TOTAL Payroll, taxes and benefits | B19: 123248.82 | C19: 106336.47 | D19: -16912.35 | E19: -15.90456219
A20: Rent-Kennewick | B20: 7550.95 | C20: 5061 | D20: -2489.95 | E20: -49.19877495
A21: Office Exp-Kennewick | B21: 2315.66 | C21: 780.28 | D21: -1535.38 | E21: -196.7729533
A22: Web PT - Kennewick | B22: 777 | C22: 702.75 | D22: -74.25 | E22: -10.56563501
A23: Postage-Kennewick | B23: 98 | C23: 59.25 | D23: -38.75 | E23: -65.40084388
A24: Telephone and Internet-Kennewick | B24: 791.2 | C24: 560.53 | D24: -230.67 | E24: -41.15212388
A25: Utilities-Kennewick | B25: 647.42 | C25: 742.03 | D25: 94.61 | E25: 12.75015835
A26: Pool Supplies - Kennewick | B26: 327.42 | C26: 0 | D26: -327.42 | E26: 0
A27: Repair & Maint-Kennewick | B27: 0 | C27: 98.53 | D27: 98.53 | E27: 100
A28: Mileage-Kennewick | B28: 75.79 | C28: 94.5 | D28: 18.71 | E28: 19.7989418
A29: Depreciation-Kennewick | B29: 2193.53 | C29: 278.53 | D29: -1915 | E29: -687.5381467
A30: Advertising-Kennewick | B30: 140.47 | C30: 1135.97 | D30: 995.5 | E30: 87.63435654
A31: PTSupplies-Kennewick | B31: 1139.72 | C31: 840.47 | D31: -299.25 | E31: -35.60507811
A32: Education Exp-Kirk Holle | B32: 0 | C32: 862.5 | D32: 862.5 | E32: 100
A33: Educ Exp - Matthew Pattillo | B33: 570 | C33: 862.5 | D33: 292.5 | E33: 33.91304348
A34: DUES&SUBSCRIPTIONS-KENNEWICK | B34: 0 | C34: 67.78 | D34: 67.78 | E34: 100
A35: Insurance-General-Kennewick | B35: 770.6 | C35: 123.75 | D35: -646.85 | E35: -522.7070707
A36: Insurance-malpractice-Kennewic | B36: 0 | C36: 195.75 | D36: 195.75 | E36: 100
A37: Licenses-Kennewick | B37: 0 | C37: 26.25 | D37: 26.25 | E37: 100
A38: State Excise Tax-Kennewick | B38: 1858.47 | C38: 2439 | D38: 580.53 | E38: 23.80196802
A39: Property Tax-Kennewick | B39: 0 | C39: 45.47 | D39: 45.47 | E39: 100
A40: TOTAL Expenses | B40: 142505.05 | C40: 121313.31 | D40: -21191.74 | E40: -17.46860258
A41: OPERATING PROFIT | B41: -35906.82 | C41: 18611.66 | D41: -54518.48 | E41: -292.9264773
A42: Other Income & Expenses | B42: 0 | C42: 0 | D42: 0 | E42: 0
A43: Interest Income-Kennewick | B43: 11.59 | C43: 0.28 | D43: 11.31 | E43: 4039.285714
A44: Bank Charge-Kennewick | B44: -204.46 | C44: -347.25 | D44: 142.79 | E44: 41.12023038
A45: TOTAL Other Income & Expenses | B45: -192.87 | C45: -346.97 | D45: 154.1 | E45: 44.41306165
A46: PROFIT BEFORE TAXES | B46: -36099.69 | C46: 18264.69 | D46: -54364.38 | E46: -297.6474279
A47: NET PROFIT | B47: -36099.69 | C47: 18264.69 | D47: -54364.38 | E47: -297.6474279

Sheet O.KH
A1: Revenue-Cash Basis | B1: 0 | C1: 0 | D1: 0 | E1: 0
A2: Professional Fees-Othello | B2: 146695.55 | C2: 140130.28 | D2: 6565.27 | E2: 4.685118734
A3: Report Fees-Othello | B3: 0 | C3: 157.22 | D3: -157.22 | E3: -100
A4: Retail Sales - Othello | B4: 0 | C4: 59.72 | D4: -59.72 | E4: -100
A5: (Refunds)Overpayments-Othello | B5: -132.88 | C5: -328.97 | D5: 196.09 | E5: 59.60725902
A6: TOTAL Revenue-Cash Basis | B6: 146562.67 | C6: 140018.25 | D6: 6544.42 | E6: 4.673976428
A7: NET REVENUE | B7: 146562.67 | C7: 140018.25 | D7: 6544.42 | E7: 4.673976428
A8: GROSS PROFIT | B8: 146562.67 | C8: 140018.25 | D8: 6544.42 | E8: 4.673976428
A9: Expenses | B9: 0 | C9: 0 | D9: 0 | E9: 0
A10: Payroll, taxes and benefits | B10: 0 | C10: 0 | D10: 0 | E10: 0
A11: Salaries-PT-Othello | B11: 31587.5 | C11: 32542.08 | D11: 954.58 | E11: 2.933371192
A12: Comm - PT | B12: 12631 | C12: 14995.5 | D12: 2364.5 | E12: 15.76806375
A13: COMM - OFF | B13: 1026 | C13: 1499.55 | D13: 473.55 | E13: 31.57947384
A14: Salaries-Office-Othello | B14: 16574.59 | C14: 15524.73 | D14: -1049.86 | E14: -6.762500862
A15: Payroll Taxes-Othello | B15: 4955.48 | C15: 5898.54 | D15: 943.06 | E15: 15.98802416
A16: Medical Insurance-Othello | B16: 5175 | C16: 5175 | D16: 0 | E16: 0
A17: Retirement Plan Contribution - O | B17: 9355.36 | C17: 8250.51 | D17: -1104.85 | E17: -13.39129339
A18: TOTAL Payroll, taxes and benefits | B18: 81304.93 | C18: 83885.91 | D18: 2580.98 | E18: 3.076774157
A19: Rent-Othello | B19: 9600 | C19: 9600 | D19: 0 | E19: 0
A20: Office Exp-Othello | B20: 1733.97 | C20: 1618.22 | D20: -115.75 | E20: -7.152921111
A21: Web PT - Othello | B21: 803 | C21: 547.97 | D21: -255.03 | E21: -46.54086903
A22: Postage-Othello | B22: 106.2 | C22: 34.03 | D22: -72.17 | E22: -212.0775786
A23: Telephone and Internet-Othello | B23: 813.4 | C23: 868.97 | D23: 55.57 | E23: 6.394927328
A24: Utilities-Othello | B24: 1583.52 | C24: 1924.03 | D24: 340.51 | E24: 17.697749
A25: Repair & Maint-Othello | B25: 1029.63 | C25: 315 | D25: -714.63 | E25: -226.8666667
A26: Mileage-Othello | B26: 613.49 | C26: 647.25 | D26: 33.76 | E26: 5.21591348
A27: Depreciation-Othello | B27: 800.12 | C27: 589.22 | D27: -210.9 | E27: -35.79308238
A28: Advertising-Othello | B28: 1688.06 | C28: 1632.28 | D28: -55.78 | E28: -3.417305854
A29: PT Supplies-Othello | B29: 879.84 | C29: 399.75 | D29: -480.09 | E29: -120.097561
A30: Education Exp - Ken Jones | B30: 0 | C30: 748.78 | D30: 748.78 | E30: 100
A31: Cont Educ - Jessica Barker | B31: 2960 | C31: 523.78 | D31: -2436.22 | E31: -465.1227615
A32: Dues & Subscriptions-Othello | B32: 84.94 | C32: 184.03 | D32: 99.09 | E32: 53.84448188
A33: Insurance-general-Othello | B33: 608.6 | C33: 71.53 | D33: -537.07 | E33: -750.8318188
A34: Insurance-malpractice-Othello | B34: 0 | C34: 97.78 | D34: 97.78 | E34: 100
A35: LICENSES-OTHELLO | B35: 0 | C35: 12.47 | D35: 12.47 | E35: 100
A36: State Excise Tax-Othello | B36: 1932.82 | C36: 2582.25 | D36: 649.43 | E36: 25.14977249
A37: Property Tax-Othello | B37: 0 | C37: 57.28 | D37: 57.28 | E37: 100
A38: TOTAL Expenses | B38: 106542.52 | C38: 106340.53 | D38: -201.99 | E38: -0.189946392
A39: OPERATING PROFIT | B39: 40020.15 | C39: 33677.72 | D39: 6342.43 | E39: 18.83271789
A40: Other Income & Expenses | B40: 0 | C40: 0 | D40: 0 | E40: 0
A41: Bank Charge - Othello | B41: -186.9 | C41: -241.78 | D41: 54.88 | E41: 22.69832079
A42: TOTAL Other Income & Expenses | B42: -186.9 | C42: -241.78 | D42: 54.88 | E42: 22.69832079
A43: PROFIT BEFORE TAXES | B43: 39833.25 | C43: 33435.94 | D43: 6397.31 | E43: 19.13303469
A44: NET PROFIT | B44: 39833.25 | C44: 33435.94 | D44: 6397.31 | E44: 19.13303469

Sheet R.KH
A1: Revenue-Cash Basis | B1: 0 | C1: 0 | D1: 0 | E1: 0
A2: Professional Fees-Richland | B2: 156213.44 | C2: 152788.5 | D2: 3424.94 | E2: 2.241621588
A3: Other Income-Richland | B3: 244 | C3: 0 | D3: 244 | E3: 0
A4: Report Fees-Richland | B4: 692.03 | C4: 571.5 | D4: 120.53 | E4: 21.09011374
A5: Retail Sales-Richland | B5: 0 | C5: 45 | D5: -45 | E5: -100
A6: Refunds(Overpayments)-Richland | B6: -519.28 | C6: -106.5 | D6: -412.78 | E6: -387.5868545
A7: TOTAL Revenue-Cash Basis | B7: 156630.19 | C7: 153298.5 | D7: 3331.69 | E7: 2.173335029
A8: NET REVENUE | B8: 156630.19 | C8: 153298.5 | D8: 3331.69 | E8: 2.173335029
A9: GROSS PROFIT | B9: 156630.19 | C9: 153298.5 | D9: 3331.69 | E9: 2.173335029
A10: Expenses | B10: 0 | C10: 0 | D10: 0 | E10: 0
A11: Payroll, taxes and benefits | B11: 0 | C11: 0 | D11: 0 | E11: 0
A12: Salaries-PT-Richland | B12: 31923.1 | C12: 33069.69 | D12: 1146.59 | E12: 3.46719307
A13: COMM - PT | B13: 22054 | C13: 13842 | D13: -8212 | E13: -59.32668689
A14: COMM - OFF | B14: 2417 | C14: 1268.85 | D14: -1148.15 | E14: -90.48744927
A15: Salaries-Office-Richland | B15: 16127.58 | C15: 14555.79 | D15: -1571.79 | E15: -10.79838332
A16: Payroll Taxes-Richland | B16: 3248.26 | C16: 5332.41 | D16: 2084.15 | E16: 39.08457902
A17: Medical Insurance-Richland | B17: 3450 | C17: 3450 | D17: 0 | E17: 0
A18: Retirement Plan Contribution - R | B18: 7642.76 | C18: 6706.23 | D18: -936.53 | E18: -13.96507427
A19: TOTAL Payroll, taxes and benefits | B19: 86862.7 | C19: 78224.97 | D19: -8637.73 | E19: -11.04216467
A20: Rent-Richland | B20: 21300 | C20: 21097.97 | D20: -202.03 | E20: -0.9575802791
A21: Office Exp-Richland | B21: 631.49 | C21: 805.5 | D21: 174.01 | E21: 21.60273122
A22: Web PT - Richland | B22: 528 | C22: 528 | D22: 0 | E22: 0
A23: Postage-Richland | B23: 0 | C23: 79.97 | D23: 79.97 | E23: 100
A24: Telephone and Internet-Richland | B24: 721.89 | C24: 754.22 | D24: 32.33 | E24: 4.286547692
A25: Utilities-Richland | B25: 3445.81 | C25: 3537.28 | D25: 91.47 | E25: 2.5858852
A26: Pool Supplies - Richland | B26: 447.26 | C26: 898.03 | D26: 450.77 | E26: 50.19542777
A27: Laundry & Clean-Richland | B27: 174 | C27: 170.53 | D27: -3.47 | E27: -2.034832581
A28: REPAIR&MAINTENANCE-RICHLAND | B28: 695.21 | C28: 834.47 | D28: 139.26 | E28: 16.68843697
A29: Pool Repairs - Richland | B29: 282.36 | C29: 341.53 | D29: 59.17 | E29: 17.32497877
A30: Mileage-Richland | B30: 75.79 | C30: 72.47 | D30: -3.32 | E30: -4.581206016
A31: Depreciation-Richland | B31: 771.02 | C31: 662.25 | D31: -108.77 | E31: -16.42431106
A32: Advertising-Richland | B32: 0 | C32: 663.28 | D32: 663.28 | E32: 100
A33: PT Supplies-Richland | B33: 444.08 | C33: 612 | D33: 167.92 | E33: 27.4379085
A34: Education-Dale Blatter | B34: 0 | C34: 862.5 | D34: 862.5 | E34: 100
A35: Dues&Subscriptions-Richland | B35: 278.26 | C35: 97.5 | D35: -180.76 | E35: -185.3948718
A36: Insurance-General-Richland | B36: 651.68 | C36: 97.22 | D36: -554.46 | E36: -570.3147501
A37: Insurance-malpractice-Richland | B37: 0 | C37: 195.75 | D37: 195.75 | E37: 100
A38: Licenses-Richland | B38: 0 | C38: 105 | D38: 105 | E38: 100
A39: State Excise Tax-Richland | B39: 2620.23 | C39: 2724.28 | D39: 104.05 | E39: 3.819357775
A40: Property Tax-Richland | B40: 0 | C40: 46.97 | D40: 46.97 | E40: 100
A41: TOTAL Expenses | B41: 119929.78 | C41: 113411.69 | D41: -6518.09 | E41: -5.747282313
A42: OPERATING PROFIT | B42: 36700.41 | C42: 39886.81 | D42: -3186.4 | E42: -7.988605757
A43: Other Income & Expenses | B43: 0 | C43: 0 | D43: 0 | E43: 0
A44: Interest Income-Richland | B44: 0.33 | C44: 4.97 | D44: -4.64 | E44: -93.36016097
A45: Bank Charge-Richland | B45: -460.03 | C45: -540.47 | D45: 80.44 | E45: 14.88334228
A46: TOTAL Other Income & Expenses | B46: -459.7 | C46: -535.5 | D46: 75.8 | E46: 14.15499533
A47: PROFIT BEFORE TAXES | B47: 36240.71 | C47: 39351.31 | D47: -3110.6 | E47: -7.904692372
A48: NET PROFIT | B48: 36240.71 | C48: 39351.31 | D48: -3110.6 | E48: -7.904692372

Sheet G.KH
A1: Revenue-Cash Basis | B1: 0 | C1: 0 | D1: 0 | E1: 0
A2: Professional Fees-Grandview | B2: 244575.22 | C2: 173250.47 | D2: 71324.75 | E2: 41.16857518
A3: Other Income-Grandview | B3: 1900 | C3: 1223.25 | D3: 676.75 | E3: 55.32393215
A4: Report Fees-Grandview | B4: 770.86 | C4: 377.53 | D4: 393.33 | E4: 104.1850979
A5: Retail Sales-Grandview | B5: 134.94 | C5: 136.78 | D5: -1.84 | E5: -1.34522591
A6: Refunds(overpayments)Grandview | B6: 0 | C6: -644.25 | D6: 644.25 | E6: 100
A7: TOTAL Revenue-Cash Basis | B7: 247381.02 | C7: 174343.78 | D7: 73037.24 | E7: 41.89265599
A8: NET REVENUE | B8: 247381.02 | C8: 174343.78 | D8: 73037.24 | E8: 41.89265599
A9: GROSS PROFIT | B9: 247381.02 | C9: 174343.78 | D9: 73037.24 | E9: 41.89265599
A10: Expenses | B10: 0 | C10: 0 | D10: 0 | E10: 0
A11: Payroll, taxes and benefits | B11: 0 | C11: 0 | D11: 0 | E11: 0
A12: Salaries-PT-Grandview | B12: 48257.8 | C12: 40988.01 | D12: -7269.79 | E12: -17.73638193
A13: COMM - PT | B13: 25883 | C13: 21224.4 | D13: -4658.6 | E13: -21.94926594
A14: COMM - OFF | B14: 1897 | C14: 1730.25 | D14: -166.75 | E14: -9.637335645
A15: Salaries-Office-Grandview | B15: 24352.83 | C15: 18122.4 | D15: -6230.43 | E15: -34.37971792
A16: Payroll Taxes-Grandview | B16: 6269.19 | C16: 7357.47 | D16: 1088.28 | E16: 14.79149762
A17: Medical Insurance-Grandview | B17: 5175 | C17: 5175 | D17: 0 | E17: 0
A18: Retirement Plan Contribution - G | B18: 12365.34 | C18: 11669.73 | D18: -695.61 | E18: -5.960806291
A19: TOTAL Payroll, taxes and benefits | B19: 124200.16 | C19: 106267.26 | D19: -17932.9 | E19: -16.87528219
A20: Rent-Grandview | B20: 12360 | C20: 12360 | D20: 0 | E20: 0
A21: Office Exp-Grandview | B21: 2576.83 | C21: 2393.72 | D21: -183.11 | E21: -7.649599786
A22: Web PT - Grandview | B22: 528 | C22: 552.75 | D22: 24.75 | E22: 4.47761194
A23: Postage-Grandview | B23: 250.79 | C23: 222.47 | D23: -28.32 | E23: -12.72980627
A24: Telephone and Internet-Grandview | B24: 754.44 | C24: 924.28 | D24: 169.84 | E24: 18.37538408
A25: Gifts - Grandview | B25: 375 | C25: 0 | D25: -375 | E25: 0
A26: Utilities-Grandview | B26: 1621.83 | C26: 1510.97 | D26: -110.86 | E26: -7.337008677
A27: Pool Supplies - Grandview | B27: 3.23 | C27: 225 | D27: 221.77 | E27: 98.56444444
A28: Repair&Maint-Grandview | B28: 240 | C28: 430.5 | D28: 190.5 | E28: 44.25087108
A29: Pool Repairs - Grandview | B29: 0 | C29: 81 | D29: 81 | E29: 100
A30: Mileage-Grandview | B30: 1248.33 | C30: 606.75 | D30: -641.58 | E30: -105.7404203
A31: Depreciation-Grandview | B31: 1556.24 | C31: 1456.78 | D31: -99.46 | E31: -6.827386428
A32: Advertising-Grandview | B32: 2477.05 | C32: 2351.53 | D32: -125.52 | E32: -5.337801346
A33: PT Supplies-Grandview | B33: 2756.12 | C33: 1260 | D33: -1496.12 | E33: -118.7396825
A34: Education Exp-David Bullock | B34: 0 | C34: 862.5 | D34: 862.5 | E34: 100
A35: Cont Educ - Bryan Davis | B35: 0 | C35: 837.47 | D35: 837.47 | E35: 100
A36: Dues&Subscriptions-Grandview | B36: 164.4 | C36: 88.22 | D36: -76.18 | E36: -86.35230107
A37: Insurance-General-Grandview | B37: 836.44 | C37: 96.28 | D37: -740.16 | E37: -768.7577898
A38: Insurance-malpractice-Grandvie | B38: 0 | C38: 195.75 | D38: 195.75 | E38: 100
A39: Licenses-Grandview | B39: 50 | C39: 12.47 | D39: -37.53 | E39: -300.9623095
A40: State Excise Tax-Grandview | B40: 3352.92 | C40: 3181.5 | D40: -171.42 | E40: -5.388024517
A41: TOTAL Expenses | B41: 155351.78 | C41: 135917.2 | D41: -19434.58 | E41: -14.29883782
A42: OPERATING PROFIT | B42: 92029.24 | C42: 38426.58 | D42: 53602.66 | E42: 139.4937046
A43: Other Income & Expenses | B43: 0 | C43: 0 | D43: 0 | E43: 0
A44: Interest Income-Grandview | B44: 3.04 | C44: 1.78 | D44: 1.26 | E44: 70.78651685
A45: Bank Charge-Grandview | B45: -107.23 | C45: -201 | D45: 93.77 | E45: 46.65174129
A46: TOTAL Other Income & Expenses | B46: -104.19 | C46: -199.22 | D46: 95.03 | E46: 47.70103403
A47: PROFIT BEFORE TAXES | B47: 91925.05 | C47: 38227.36 | D47: 53697.69 | E47: 140.4692608
A48: NET PROFIT | B48: 91925.05 | C48: 38227.36 | D48: 53697.69 | E48: 140.4692608

Sheet C.KH
A1: Revenue-Cash Basis | B1: 0 | C1: 0 | D1: 0 | E1: 0
A2: Professional Fees-Clarkston | B2: 111906.71 | C2: 112254.47 | D2: -347.76 | E2: -0.3097961266
A3: Report Fees-Clarkston | B3: 204.62 | C3: 65.72 | D3: 138.9 | E3: 211.3511869
A4: Retail Sales-Clarkston | B4: 137.28 | C4: 178.03 | D4: -40.75 | E4: -22.88940066
A5: Refunds(overpayments)Clarkston | B5: 0 | C5: -70.78 | D5: 70.78 | E5: 100
A6: TOTAL Revenue-Cash Basis | B6: 112248.61 | C6: 112427.44 | D6: -178.83 | E6: -0.1590625918
A7: NET REVENUE | B7: 112248.61 | C7: 112427.44 | D7: -178.83 | E7: -0.1590625918
A8: GROSS PROFIT | B8: 112248.61 | C8: 112427.44 | D8: -178.83 | E8: -0.1590625918
A9: Expenses | B9: 0 | C9: 0 | D9: 0 | E9: 0
A10: Payroll, taxes and benefits | B10: 0 | C10: 0 | D10: 0 | E10: 0
A11: Salaries-PT-Clarkston | B11: 33731.09 | C11: 29644.71 | D11: -4086.38 | E11: -13.7845167
A12: COMM - PT | B12: 5302 | C12: 7382.4 | D12: 2080.4 | E12: 28.18053749
A13: COMM - OFF | B13: 662 | C13: 968.94 | D13: 306.94 | E13: 31.67791607
A14: Salaries-Office-Clarkston | B14: 16409.22 | C14: 13248.42 | D14: -3160.8 | E14: -23.85793929
A15: Payroll Taxes-Clarkston | B15: 4635.44 | C15: 4040.25 | D15: -595.19 | E15: -14.73151414
A16: Medical Insurance-Clarkston | B16: 3450 | C16: 3450 | D16: 0 | E16: 0
A17: Retirement Plan Contribution - C | B17: 6208.73 | C17: 5714.43 | D17: -494.3 | E17: -8.650031587
A18: TOTAL Payroll, taxes and benefits | B18: 70398.48 | C18: 64449.15 | D18: -5949.33 | E18: -9.23104494
A19: Rent-Clarkston | B19: 9996 | C19: 9996 | D19: 0 | E19: 0
A20: Office Exp-Clarkston | B20: 1304.49 | C20: 613.97 | D20: -690.52 | E20: -112.4680359
A21: Web PT - Clarkston | B21: 675 | C21: 699.75 | D21: 24.75 | E21: 3.536977492
A22: Postage-Clarkston | B22: 257.77 | C22: 49.22 | D22: -208.55 | E22: -423.709874
A23: Telephone and Internet-Clarkston | B23: 891.74 | C23: 711.28 | D23: -180.46 | E23: -25.37116185
A24: Utilities-Clarkston | B24: 1789.47 | C24: 1638.47 | D24: -151 | E24: -9.215914847
A25: Repair & Maint-Clarkston | B25: 219.52 | C25: 16.03 | D25: -203.49 | E25: -1269.432314
A26: Travel-Clarkston | B26: 590.41 | C26: 161.72 | D26: -428.69 | E26: -265.0816226
A27: Mileage-Clarkston | B27: 262.64 | C27: 216 | D27: -46.64 | E27: -21.59259259
A28: Depreciation-Clarkston | B28: 248.03 | C28: 192.28 | D28: -55.75 | E28: -28.99417516
A29: Advertising-Clarkston | B29: 1670.8 | C29: 1343.72 | D29: -327.08 | E29: -24.34138064
A30: PT Supplies-Clarkston | B30: 735.98 | C30: 948.28 | D30: 212.3 | E30: 22.38790231
A31: Educatin Exp - S.Medavarapu | B31: 3812.63 | C31: 612.47 | D31: -3200.16 | E31: -522.5006939
A32: Dues & Subscriptions-Clarkston | B32: 40.5 | C32: 64.78 | D32: 24.28 | E32: 37.48070392
A33: Insurance-general-Clarkston | B33: 759.52 | C33: 93 | D33: -666.52 | E33: -716.688172
A34: Insurance-malpractice-Clarksto | B34: 0 | C34: 97.78 | D34: 97.78 | E34: 100
A35: Licenses-Clarkston | B35: 35 | C35: 8.72 | D35: -26.28 | E35: -301.3761468
A36: State Excise Tax-Clarkston | B36: 1552.34 | C36: 2103.75 | D36: 551.41 | E36: 26.21081402
A37: Property Tax-Clarkston | B37: 0 | C37: 50.25 | D37: 50.25 | E37: 100
A38: TOTAL Expenses | B38: 95240.32 | C38: 84066.62 | D38: -11173.7 | E38: -13.2914824
A39: OPERATING PROFIT | B39: 17008.29 | C39: 28360.82 | D39: -11352.53 | E39: -40.02892018
A40: Other Income & Expenses | B40: 0 | C40: 0 | D40: 0 | E40: 0
A41: Interest Income-Clarkston | B41: 0.01 | C41: 3 | D41: -2.99 | E41: -99.66666667
A42: Bank Charge-Clarkston | B42: -562.26 | C42: -295.5 | D42: -266.76 | E42: -90.27411168
A43: TOTAL Other Income & Expenses | B43: -562.25 | C43: -292.5 | D43: -269.75 | E43: -92.22222222
A44: PROFIT BEFORE TAXES | B44: 16446.04 | C44: 28068.32 | D44: -11622.28 | E44: -41.40710951
A45: NET PROFIT | B45: 16446.04 | C45: 28068.32 | D45: -11622.28 | E45: -41.40710951

Sheet MF.KH
A1: Revenue-Cash Basis | B1: 0 | C1: 0 | D1: 0 | E1: 0
A2: Profess. Fees-Milton Freewater | B2: 137690.05 | C2: 185034 | D2: -47343.95 | E2: -25.58662192
A3: Other Income-Milton Freewater | B3: 0 | C3: 17767.22 | D3: -17767.22 | E3: -100
A4: Report Fees-Milton Freewater | B4: 124.25 | C4: 210.75 | D4: -86.5 | E4: -41.04389087
A5: Retail Sales-Milton Freewater | B5: 112 | C5: 290.25 | D5: -178.25 | E5: -61.41257537
A6: (Refunds)Overpayments-M/F | B6: 0 | C6: -1924.78 | D6: 1924.78 | E6: 100
A7: TOTAL Revenue-Cash Basis | B7: 137926.3 | C7: 201377.44 | D7: -63451.14 | E7: -31.50856422
A8: NET REVENUE | B8: 137926.3 | C8: 201377.44 | D8: -63451.14 | E8: -31.50856422
A9: GROSS PROFIT | B9: 137926.3 | C9: 201377.44 | D9: -63451.14 | E9: -31.50856422
A10: Expenses | B10: 0 | C10: 0 | D10: 0 | E10: 0
A11: Payroll, taxes and benefits | B11: 0 | C11: 0 | D11: 0 | E11: 0
A12: Salaries-PT-Milton Freewater | B12: 64611.16 | C12: 58093.5 | D12: -6517.66 | E12: -11.21925861
A13: Nursing Home Hours - MF | B13: 0 | C13: 7382.4 | D13: 7382.4 | E13: 100
A14: COMM - PT | B14: 0 | C14: 23531.4 | D14: 23531.4 | E14: 100
A15: COMM - OFF | B15: 0 | C15: 2768.4 | D15: 2768.4 | E15: 100
A16: Salaries-Off-Milton Freewater | B16: 15604.1 | C16: 14352.54 | D16: -1251.56 | E16: -8.720128981
A17: Payroll Taxes-Milton Freewater | B17: 8291.89 | C17: 8584.35 | D17: 292.46 | E17: 3.406897435
A18: Medical Insur-Milton Freewater | B18: 5175 | C18: 6612.47 | D18: 1437.47 | E18: 21.73877537
A19: Retirement Plan Contribution - MF | B19: -662.72 | C19: 10733.55 | D19: 11396.27 | E19: 106.1742853
A20: TOTAL Payroll, taxes and benefits | B20: 93019.43 | C20: 132058.61 | D20: 39039.18 | E20: 29.56201038
A21: Rent-Milton Freewater | B21: 9276 | C21: 9215.53 | D21: -60.47 | E21: -0.6561749568
A22: Office Exp-Milton Freewater | B22: 1021.11 | C22: 1272.75 | D22: 251.64 | E22: 19.77136123
A23: Web PT - Milton Freewater | B23: 1116 | C23: 1140.75 | D23: 24.75 | E23: 2.169625247
A24: Postage-Milton Freewater | B24: 98 | C24: 106.22 | D24: 8.22 | E24: 7.73865562
A25: Telephone and Internet-Milton Freewater | B25: 598.53 | C25: 618.75 | D25: 20.22 | E25: 3.267878788
A26: Utilities-Milton Freewater | B26: 972.94 | C26: 1075.5 | D26: 102.56 | E26: 9.536029754
A27: Pool Supplies - Milton Freewater | B27: 122.08 | C27: 83.72 | D27: -38.36 | E27: -45.81939799
A28: Repair&Maint-Milton Freewater | B28: 0 | C28: 243.47 | D28: 243.47 | E28: 100
A29: Pool Repairs - Milton Freewater | B29: -1065.45 | C29: 94.97 | D29: 1160.42 | E29: 1221.880594
A30: Mileage-Milton Freewater | B30: 417.39 | C30: 204 | D30: -213.39 | E30: -104.6029412
A31: Depreciation-Milton Freewater | B31: 788.98 | C31: 760.97 | D31: -28.01 | E31: -3.680828416
A32: Advertising-Milton Freewater | B32: 139.12 | C32: 899.25 | D32: 760.13 | E32: 84.52933
A33: PT Supplies-Milton Freewater | B33: 420.08 | C33: 1355.25 | D33: 935.17 | E33: 69.00350489
A34: Education Exp-Randy Castleman | B34: 0 | C34: 612.47 | D34: 612.47 | E34: 100
A35: Cont Educ - Korey Zbaraschuck | B35: 200 | C35: 612.47 | D35: 412.47 | E35: 67.34533936
A36: Meghan Rambo - Cont Educ | B36: 1354 | C36: 490.03 | D36: -863.97 | E36: -176.3096137
A37: Dues & Subscriptions-M/F | B37: 110 | C37: 135.75 | D37: 25.75 | E37: 18.96869245
A38: Insurance-Gen-Milton Freewater | B38: 911.28 | C38: 83.72 | D38: -827.56 | E38: -988.4854276
A39: Insurance-Malpractice-M/F | B39: 0 | C39: 195.75 | D39: 195.75 | E39: 100
A40: Licenses-Milton Freewater | B40: 0 | C40: 15 | D40: 15 | E40: 100
A41: State Excise-Milton Freewater | B41: 0 | C41: 12.47 | D41: 12.47 | E41: 100
A42: Property Tax-Milton Freewater | B42: 359.34 | C42: 147.75 | D42: -211.59 | E42: -143.2081218
A43: TOTAL Expenses | B43: 109858.83 | C43: 151435.15 | D43: 41576.32 | E43: 27.45486764
A44: OPERATING PROFIT | B44: 28067.47 | C44: 49942.29 | D44: -21874.82 | E44: -43.80019418
A45: Other Income & Expenses | B45: 0 | C45: 0 | D45: 0 | E45: 0
A46: Interest Inc.-Milton Freewater | B46: -1.21 | C46: 1.03 | D46: -2.24 | E46: -217.4757282
A47: Bank Charge-Milton Freewater | B47: -416.92 | C47: -817.22 | D47: 400.3 | E47: 48.98313796
A48: TOTAL Other Income & Expenses | B48: -418.13 | C48: -816.19 | D48: 398.06 | E48: 48.77050687
A49: PROFIT BEFORE TAXES | B49: 27649.34 | C49: 49126.1 | D49: -21476.76 | E49: -43.7176165
A50: NET PROFIT | B50: 27649.34 | C50: 49126.1 | D50: -21476.76 | E50: -43.7176165

Sheet BC.KH
A1: Revenue-Cash Basis | B1: 0 | C1: 0 | D1: 0 | E1: 0
A2: Profess. Fees-Benton City | B2: 57272.13 | C2: 67722.47 | D2: -10450.34 | E2: -15.43112648
A3: Other Income-Benton City | B3: 0 | C3: 90.28 | D3: -90.28 | E3: -100
A4: Report Fees-Benton City | B4: 365.29 | C4: 153.75 | D4: 211.54 | E4: 137.5869919
A5: Retail Sales-Benton City | B5: 55 | C5: 106.03 | D5: -51.03 | E5: -48.12788833
A6: (Refunds)Overpayments-BC | B6: 0 | C6: -291.47 | D6: 291.47 | E6: 100
A7: TOTAL Revenue-Cash Basis | B7: 57692.42 | C7: 67781.06 | D7: -10088.64 | E7: -14.8841579
A8: NET REVENUE | B8: 57692.42 | C8: 67781.06 | D8: -10088.64 | E8: -14.8841579
A9: GROSS PROFIT | B9: 57692.42 | C9: 67781.06 | D9: -10088.64 | E9: -14.8841579
A10: Expenses | B10: 0 | C10: 0 | D10: 0 | E10: 0
A11: Payroll, taxes and benefits | B11: 0 | C11: 0 | D11: 0 | E11: 0
A12: Salaries-PT-Benton City | B12: 17748.64 | C12: 18451.62 | D12: 702.98 | E12: 3.809855178
A13: COMM - PT | B13: 0 | C13: 2883.75 | D13: 2883.75 | E13: 100
A14: COMM - OFF | B14: 0 | C14: 346.05 | D14: 346.05 | E14: 100
A15: Salaries-Off-Benton City | B15: 9242.96 | C15: 10569.99 | D15: 1327.03 | E15: 12.55469494
A16: Payroll Taxes-Benton City | B16: 2679.7 | C16: 3152.97 | D16: 473.27 | E16: 15.01029188
A17: Medical Insur-Benton City | B17: 3450 | C17: 3450 | D17: 0 | E17: 0
A18: Retirement Plan Contribution - BC | B18: 430.72 | C18: 4818.39 | D18: 4387.67 | E18: 91.06091454
A19: TOTAL Payroll, taxes and benefits | B19: 33552.02 | C19: 43672.77 | D19: 10120.75 | E19: 23.17405102
A20: Rent-Benton City | B20: 5376 | C20: 5300.25 | D20: -75.75 | E20: -1.429177869
A21: Office Exp-Benton City | B21: 421.87 | C21: 729.28 | D21: 307.41 | E21: 42.15253401
A22: Web PT - Benton City | B22: 254 | C22: 452.53 | D22: 198.53 | E22: 43.87112457
A23: Postage-Benton City | B23: 26.65 | C23: 0 | D23: -26.65 | E23: 0
A24: Telephone and Internet-Benton City | B24: 631.38 | C24: 651 | D24: 19.62 | E24: 3.013824885
A25: Utilities-Benton City | B25: 665.71 | C25: 935.72 | D25: 270.01 | E25: 28.85585432
A26: Repair&Maint-Benton City | B26: 0 | C26: 65.25 | D26: 65.25 | E26: 100
A27: Mileage-Benton City | B27: 75.79 | C27: 72.47 | D27: -3.32 | E27: -4.581206016
A28: Depreciation-Benton City | B28: 269.4 | C28: 269.53 | D28: 0.13 | E28: 0.04823210774
A29: Advertising-Benton City | B29: 0 | C29: 790.5 | D29: 790.5 | E29: 100
A30: PT Supplies-Benton City | B30: 48.46 | C30: 528 | D30: 479.54 | E30: 90.8219697
A31: Carter Lake - Cont Education | B31: 495 | C31: 490.97 | D31: -4.03 | E31: -0.8208240829
A32: Dues & Subscriptions-BC | B32: 0 | C32: 91.78 | D32: 91.78 | E32: 100
A33: Insurance-Gen-Benton City | B33: 526.76 | C33: 82.5 | D33: -444.26 | E33: -538.4969697
A34: Insurance-Malpractice-BC | B34: 0 | C34: 97.5 | D34: 97.5 | E34: 100
A35: Licenses-Benton City | B35: 0 | C35: 9 | D35: 9 | E35: 100
A36: State Excise-Benton City | B36: 856.92 | C36: 1215.47 | D36: 358.55 | E36: 29.49887698
A37: Property Tax-Benton City | B37: 0 | C37: 64.5 | D37: 64.5 | E37: 100
A38: TOTAL Expenses | B38: 43199.96 | C38: 55519.02 | D38: 12319.06 | E38: 22.18890031
A39: OPERATING PROFIT | B39: 14492.46 | C39: 12262.04 | D39: 2230.42 | E39: 18.18963239
A40: Other Income & Expenses | B40: 0 | C40: 0 | D40: 0 | E40: 0
A41: Interest Inc.-Benton City | B41: -0.8 | C41: 0.28 | D41: -1.08 | E41: -385.7142857
A42: Bank Charge-Benton City | B42: -204.46 | C42: -213.47 | D42: 9.01 | E42: 4.220733593
A43: TOTAL Other Income & Expenses | B43: -205.26 | C43: -213.19 | D43: 7.93 | E43: 3.719686664
A44: PROFIT BEFORE TAXES | B44: 14287.2 | C44: 12048.85 | D44: 2238.35 | E44: 18.57729161
A45: NET PROFIT | B45: 14287.2 | C45: 12048.85 | D45: 2238.35 | E45: 18.57729161

Sheet S.KH
A1: Revenue-Cash Basis | B1: 0 | C1: 0 | D1: 0 | E1: 0
A2: Professional Fees-Lebanon | B2: 128466.72 | C2: 146789.72 | D2: -18323 | E2: -12.48248174
A3: Other Income-Lebanon | B3: 0 | C3: 20.25 | D3: -20.25 | E3: -100
A4: Report Fees-Lebanon | B4: 318.32 | C4: 277.78 | D4: 40.54 | E4: 14.59428325
A5: Retail Sales-Lebanon | B5: 393 | C5: 307.5 | D5: 85.5 | E5: 27.80487805
A6: (Refunds)Overpayments-Lebanon | B6: -77.54 | C6: -82.5 | D6: 4.96 | E6: 6.012121212
A7: TOTAL Revenue-Cash Basis | B7: 129100.5 | C7: 147312.75 | D7: -18212.25 | E7: -12.36298284
A8: NET REVENUE | B8: 129100.5 | C8: 147312.75 | D8: -18212.25 | E8: -12.36298284
A9: GROSS PROFIT | B9: 129100.5 | C9: 147312.75 | D9: -18212.25 | E9: -12.36298284
A10: Expenses | B10: 0 | C10: 0 | D10: 0 | E10: 0
A11: Payroll, taxes and benefits | B11: 0 | C11: 0 | D11: 0 | E11: 0
A12: Salaries-PT-Lebanon | B12: 33467.51 | C12: 34623.93 | D12: 1156.42 | E12: 3.339944368
A13: COMM - PT | B13: 22858 | C13: 20532.3 | D13: -2325.7 | E13: -11.32703107
A14: COMM - OFF | B14: 1702 | C14: 1730.25 | D14: 28.25 | E14: 1.632712036
A15: Salaries-Office-Lebanon | B15: 12759.02 | C15: 13503.57 | D15: 744.55 | E15: 5.513727111
A16: Payroll Taxes-Lebanon | B16: 4778.25 | C16: 6350.25 | D16: 1572 | E16: 24.75493091
A17: Medical Insurance-Lebanon | B17: 5175 | C17: 5175 | D17: 0 | E17: 0
A18: Retirement Plan Contribution - S | B18: 9836.59 | C18: 9567.36 | D18: -269.23 | E18: -2.814046926
A19: TOTAL Payroll, taxes and benefits | B19: 90576.37 | C19: 91482.66 | D19: 906.29 | E19: 0.9906686141
A20: Rent-Lebanon | B20: 9210 | C20: 8871 | D20: -339 | E20: -3.821440649
A21: Office Exp-Lebanon | B21: 760.21 | C21: 1165.5 | D21: 405.29 | E21: 34.77391677
A22: Web PT - Santiam | B22: 528 | C22: 675 | D22: 147 | E22: 21.77777778
A23: Postage-Lebanon | B23: 0 | C23: 43.78 | D23: 43.78 | E23: 100
A24: Telephone and Internet-Lebanon | B24: 622.23 | C24: 631.22 | D24: 8.99 | E24: 1.424226102
A25: Utilities-Lebanon | B25: 2019.96 | C25: 1744.97 | D25: -274.99 | E25: -15.75901018
A26: Repair & Maint-Lebanon | B26: 7.99 | C26: 96 | D26: 88.01 | E26: 91.67708333
A27: Travel-Lebanon | B27: 0 | C27: 132.47 | D27: 132.47 | E27: 100
A28: Mileage-Lebanon | B28: 32.8 | C28: 106.5 | D28: 73.7 | E28: 69.20187793
A29: Depreciation-Lebanon | B29: 376.89 | C29: 179.53 | D29: -197.36 | E29: -109.9314878
A30: Advertising-Lebanon | B30: 1614.79 | C30: 1476 | D30: -138.79 | E30: -9.403116531
A31: PT Supplies-Lebanon | B31: 330.95 | C31: 753.28 | D31: 422.33 | E31: 56.06547366
A32: Education Exp-Brian Corbett | B32: 2170.01 | C32: 724.5 | D32: -1445.51 | E32: -199.5182885
A33: Jared Hodgson - Cont Educ | B33: 2549.62 | C33: 862.5 | D33: -1687.12 | E33: -195.6081159
A34: Dues & Subscriptions-Lebanon | B34: 46 | C34: 231.75 | D34: 185.75 | E34: 80.15102481
A35: Insurance-General-Lebanon | B35: 658.52 | C35: 76.78 | D35: -581.74 | E35: -757.6712686
A36: Insurance-Malpractice-Lebanon | B36: 0 | C36: 195.75 | D36: 195.75 | E36: 100
A37: State Excise Tax-Lebanon | B37: 0 | C37: 12.47 | D37: 12.47 | E37: 100
A38: TOTAL Expenses | B38: 111504.34 | C38: 109461.66 | D38: -2042.68 | E38: -1.866114583
A39: OPERATING PROFIT | B39: 17596.16 | C39: 37851.09 | D39: -20254.93 | E39: -53.51214456
A40: Other Income & Expenses | B40: 0 | C40: 0 | D40: 0 | E40: 0
A41: Interest Income-Lebanon | B41: 10.37 | C41: 1.03 | D41: 9.34 | E41: 906.7961165
A42: Bank Charge-Lebanon | B42: -587.82 | C42: -777.75 | D42: 189.93 | E42: 24.42044359
A43: TOTAL Other Income & Expenses | B43: -577.45 | C43: -776.72 | D43: 199.27 | E43: 25.65531981
A44: PROFIT BEFORE TAXES | B44: 17018.71 | C44: 37074.37 | D44: -20055.66 | E44: -54.09575402
A45: NET PROFIT | B45: 17018.71 | C45: 37074.37 | D45: -20055.66 | E45: -54.09575402

Sheet ME.KH
A1: Revenue-Cash Basis | B1: 0 | C1: 0 | D1: 0 | E1: 0
A2: Professional Fees-Meridian | B2: 154485.15 | C2: 118061.72 | D2: 36423.43 | E2: 30.85117683
A3: Other Income-Meridian | B3: 50 | C3: 191.53 | D3: -141.53 | E3: -73.89442907
A4: Report Fees-Meridian | B4: 323.46 | C4: 288.75 | D4: 34.71 | E4: 12.02077922
A5: Retail Sales-Meridian | B5: 299.92 | C5: 205.78 | D5: 94.14 | E5: 45.74788609
A6: (Refunds)Overpayments-Meridian | B6: -677.84 | C6: -137.53 | D6: -540.31 | E6: -392.8670108
A7: TOTAL Revenue-Cash Basis | B7: 154480.69 | C7: 118610.25 | D7: 35870.44 | E7: 30.2422767
A8: NET REVENUE | B8: 154480.69 | C8: 118610.25 | D8: 35870.44 | E8: 30.2422767
A9: GROSS PROFIT | B9: 154480.69 | C9: 118610.25 | D9: 35870.44 | E9: 30.2422767
A10: Expenses | B10: 0 | C10: 0 | D10: 0 | E10: 0
A11: Payroll, taxes and benefits | B11: 0 | C11: 0 | D11: 0 | E11: 0
A12: Salaries-PT-Meridian | B12: 43177.86 | C12: 34909.05 | D12: -8268.81 | E12: -23.68672307
A13: COMM - PT | B13: 19472 | C13: 9689.4 | D13: -9782.6 | E13: -100.9618759
A14: COMM - OFF | B14: 1947 | C14: 876.66 | D14: -1070.34 | E14: -122.0929437
A15: Salaries-Office-Meridian | B15: 15730.42 | C15: 11970.33 | D15: -3760.09 | E15: -31.41174888
A16: Payroll Taxes-Meridian | B16: 5525.56 | C16: 5233.65 | D16: -291.91 | E16: -5.577560593
A17: Medical Insurance-Meridian | B17: 6900 | C17: 6900 | D17: 0 | E17: 0
A18: Retirement Plan Contribution - ME | B18: 13151.24 | C18: 7126.77 | D18: -6024.47 | E18: -84.53296514
A19: TOTAL Payroll, taxes and benefits | B19: 105904.08 | C19: 76705.86 | D19: -29198.22 | E19: -38.0651752
A20: Rent-Meridian | B20: 15108 | C20: 11144.25 | D20: -3963.75 | E20: -35.56766943
A21: Office Exp-Meridian | B21: 1302.54 | C21: 644.53 | D21: -658.01 | E21: -102.0914465
A22: Web PT - Meridian | B22: 627 | C22: 702 | D22: 75 | E22: 10.68376068
A23: Postage-Meridian | B23: 88.71 | C23: 93.28 | D23: 4.57 | E23: 4.89922813
A24: Telephone and Internet-Meridian | B24: 775.55 | C24: 644.72 | D24: -130.83 | E24: -20.29253009
A25: Utilities-Meridian | B25: 552.56 | C25: 526.03 | D25: -26.53 | E25: -5.043438587
A26: Repair & Maint-Meridian | B26: 199.79 | C26: 334.22 | D26: 134.43 | E26: 40.22200945
A27: Travel-Meridian | B27: 0 | C27: 78.75 | D27: 78.75 | E27: 100
A28: Mileage-Meridian | B28: 129.92 | C28: 26.25 | D28: -103.67 | E28: -394.9333333
A29: Depreciation-Meridian | B29: 200.31 | C29: 142.97 | D29: -57.34 | E29: -40.10631601
A30: Advertising-Meridian | B30: 1827.75 | C30: 1078.97 | D30: -748.78 | E30: -69.39766629
A31: PT Supplies-Meridian | B31: 1584.45 | C31: 634.78 | D31: -949.67 | E31: -149.6061628
A32: Education Exp-Doug Simpson | B32: 200 | C32: 674.72 | D32: 474.72 | E32: 70.35807446
A33: Cont Educ - Brett Pierce | B33: 651.78 | C33: 612.47 | D33: -39.31 | E33: -6.418273548
A34: Dues & Subscriptions-Meridian | B34: 0 | C34: 91.78 | D34: 91.78 | E34: 100
A35: Insurance-General-Meridian | B35: 550.52 | C35: 45 | D35: -505.52 | E35: -1123.377778
A36: Insurance-Malpractice-Meridian | B36: 0 | C36: 146.72 | D36: 146.72 | E36: 100
A37: State Excise Tax-Meridian | B37: 0 | C37: 48.75 | D37: 48.75 | E37: 100
A38: TOTAL Expenses | B38: 129702.96 | C38: 94376.05 | D38: -35326.91 | E38: -37.43207095
A39: OPERATING PROFIT | B39: 24777.73 | C39: 24234.2 | D39: 543.53 | E39: 2.242822127
A40: Other Income & Expenses | B40: 0 | C40: 0 | D40: 0 | E40: 0
A41: Interest Income-Meridian | B41: 2.2 | C41: 0.75 | D41: 1.45 | E41: 193.3333333
A42: Bank Charge-Meridian | B42: -1201.2 | C42: -1251 | D42: 49.8 | E42: 3.980815348
A43: TOTAL Other Income & Expenses | B43: -1199 | C43: -1250.25 | D43: 51.25 | E43: 4.099180164
A44: PROFIT BEFORE TAXES | B44: 23578.73 | C44: 22983.95 | D44: 594.78 | E44: 2.587805838
A45: NET PROFIT | B45: 23578.73 | C45: 22983.95 | D45: 594.78 | E45: 2.587805838

Sheet WR.KH
A1: Revenue-Cash Basis | B1: 0 | C1: 0 | D1: 0 | E1: 0
A2: Professional Fees - West Richland | B2: 92895.32 | C2: 88348.03 | D2: 4547.29 | E2: 5.147019124
A3: Other Income - West Richland | B3: 0 | C3: 331.5 | D3: -331.5 | E3: -100
A4: Report Fees - West Richland | B4: 350.73 | C4: 259.22 | D4: 91.51 | E4: 35.30206003
A5: Retail Sales - West Richland | B5: 175 | C5: 202.78 | D5: -27.78 | E5: -13.6995759
A6: Refunds/Overpmts - West Richland | B6: 0 | C6: -157.78 | D6: 157.78 | E6: 100
A7: TOTAL Revenue-Cash Basis | B7: 93421.05 | C7: 88983.75 | D7: 4437.3 | E7: 4.986640819
A8: NET REVENUE | B8: 93421.05 | C8: 88983.75 | D8: 4437.3 | E8: 4.986640819
A9: GROSS PROFIT | B9: 93421.05 | C9: 88983.75 | D9: 4437.3 | E9: 4.986640819
A10: Expenses | B10: 0 | C10: 0 | D10: 0 | E10: 0
A11: Payroll, taxes and benefits | B11: 0 | C11: 0 | D11: 0 | E11: 0
A12: Salaries - PT - West Richland | B12: 21978.7 | C12: 19550.91 | D12: -2427.79 | E12: -12.41778516
A13: COMM - PT | B13: 16611 | C13: 13842 | D13: -2769 | E13: -20.00433463
A14: COMM - OFF | B14: 1232 | C14: 498.09 | D14: -733.91 | E14: -147.3448574
A15: Salaries - Office- West Richland | B15: 12580.1 | C15: 12843.75 | D15: 263.65 | E15: 2.052749392
A16: Payroll Taxes - West Richland | B16: 2780.74 | C16: 4169.67 | D16: 1388.93 | E16: 33.31030993
A17: Medical Insurance - West Rhld | B17: 3450 | C17: 3450 | D17: 0 | E17: 0
A18: Retirement Plan Contribution - WR | B18: 3145.8 | C18: 5217.75 | D18: 2071.95 | E18: 39.70964496
A19: TOTAL Payroll, taxes and benefits | B19: 61778.34 | C19: 59572.17 | D19: -2206.17 | E19: -3.703356786
A20: Rent - West Richland | B20: 12753 | C20: 12753 | D20: 0 | E20: 0
A21: Office Exp - West Richland | B21: 1021.14 | C21: 1247.25 | D21: 226.11 | E21: 18.1286831
A22: Web PT - West Richland | B22: 480 | C22: 378 | D22: -102 | E22: -26.98412698
A23: Postage - West Richland | B23: 0 | C23: 34.22 | D23: 34.22 | E23: 100
A24: Telephone and Internet- West Richland | B24: 518.04 | C24: 532.22 | D24: 14.18 | E24: 2.664311751
A25: Utilities - West Richland | B25: 1211.81 | C25: 1132.78 | D25: -79.03 | E25: -6.976641537
A26: Repair & Maint - West Richland | B26: 285.73 | C26: 175.78 | D26: -109.95 | E26: -62.54977813
A27: Mileage - West Richland | B27: 112.77 | C27: 153 | D27: 40.23 | E27: 26.29411765
A28: Depreciation - West Richland | B28: 151.3 | C28: 174 | D28: 22.7 | E28: 13.04597701
A29: Advertising - West Richland | B29: 74.81 | C29: 400.97 | D29: 326.16 | E29: 81.34274385
A30: PT Supplies - West Richland | B30: 327.26 | C30: 607.5 | D30: 280.24 | E30: 46.13004115
A31: Cont Educ Expenses - Rod Scrimsher | B31: 520 | C31: 862.5 | D31: 342.5 | E31: 39.71014493
A32: Dues & Subscriptions - West Richland | B32: 0 | C32: 82.03 | D32: 82.03 | E32: 100
A33: Insurance - General - West Richland | B33: 527.68 | C33: 67.22 | D33: -460.46 | E33: -685.004463
A34: Insurance - Malpractice - West Richland | B34: 0 | C34: 97.78 | D34: 97.78 | E34: 100
A35: Licenses - West Richland | B35: 0 | C35: 16.22 | D35: 16.22 | E35: 100
A36: State Excise Tax - West Richland | B36: 1591.76 | C36: 2039.25 | D36: 447.49 | E36: 21.94385191
A37: Property Tax - West Richland | B37: 0 | C37: 36.75 | D37: 36.75 | E37: 100
A38: TOTAL Expenses | B38: 81353.64 | C38: 80362.64 | D38: -991 | E38: -1.233160085
A39: OPERATING PROFIT | B39: 12067.41 | C39: 8621.11 | D39: 3446.3 | E39: 39.97513081
A40: Other Income & Expenses | B40: 0 | C40: 0 | D40: 0 | E40: 0
A41: Interest Income - West Richland | B41: 0.01 | C41: 0.47 | D41: -0.46 | E41: -97.87234043
A42: Bank Charge - West Richland | B42: -330.69 | C42: -418.22 | D42: 87.53 | E42: 20.92917603
A43: TOTAL Other Income & Expenses | B43: -330.68 | C43: -417.75 | D43: 87.07 | E43: 20.84260922
A44: PROFIT BEFORE TAXES | B44: 11736.73 | C44: 8203.36 | D44: 3533.37 | E44: 43.07222894
A45: NET PROFIT | B45: 11736.73 | C45: 8203.36 | D45: 3533.37 | E45: 43.07222894

Sheet D.KH
A1: Revenue-Cash Basis | B1: 0 | C1: 0 | D1: 0 | E1: 0
A2: Report Fees - Dallas | B2: 22.5 | C2: 0 | D2: 22.5 | E2: 0
A3: TOTAL Revenue-Cash Basis | B3: 22.5 | C3: 0 | D3: 22.5 | E3: 0
A4: NET REVENUE | B4: 22.5 | C4: 0 | D4: 22.5 | E4: 0
A5: GROSS PROFIT | B5: 22.5 | C5: 0 | D5: 22.5 | E5: 0
A6: Expenses | B6: 0 | C6: 0 | D6: 0 | E6: 0
A7: Depreciation-Dallas | B7: 88.58 | C7: 88.5 | D7: -0.08 | E7: -0.09039548023
A8: TOTAL Expenses | B8: 88.58 | C8: 88.5 | D8: -0.08 | E8: -0.09039548023
A9: OPERATING PROFIT | B9: -66.08 | C9: -88.5 | D9: 22.42 | E9: 25.33333333
A10: PROFIT BEFORE TAXES | B10: -66.08 | C10: -88.5 | D10: 22.42 | E10: 25.33333333
A11: NET PROFIT | B11: -66.08 | C11: -88.5 | D11: 22.42 | E11: 25.33333333

Sheet SH.KH
A1: NET REVENUE | B1: 0 | C1: 0 | D1: 0 | E1: 0
A2: GROSS PROFIT | B2: 0 | C2: 0 | D2: 0 | E2: 0
A3: Expenses | B3: 0 | C3: 0 | D3: 0 | E3: 0
A4: Office Exp-Sweet Home | B4: 0 | C4: 227.53 | D4: 227.53 | E4: 100
A5: Depreciation-Sweet Home | B5: 106.82 | C5: 387.28 | D5: 280.46 | E5: 72.41788887
A6: Insurance-General-Sweet Home | B6: 0 | C6: 57.47 | D6: 57.47 | E6: 100
A7: TOTAL Expenses | B7: 106.82 | C7: 672.28 | D7: 565.46 | E7: 84.11078717
A8: OPERATING PROFIT | B8: -106.82 | C8: -672.28 | D8: 565.46 | E8: 84.11078717
A9: PROFIT BEFORE TAXES | B9: -106.82 | C9: -672.28 | D9: 565.46 | E9: 84.11078717
A10: NET PROFIT | B10: -106.82 | C10: -672.28 | D10: 565.46 | E10: 84.11078717

Sheet A.ME
A1: Revenue-Cash Basis | B1: 0 | C1: 0 | D1: 0 | E1: 0
A2: Professional Fees-Nampa | B2: 74878.36 | C2: 85957.78 | D2: -11079.42 | E2: -12.8893743
A3: Report Fees-Nampa | B3: 115 | C3: 30.47 | D3: 84.53 | E3: 277.4204135
A4: Retail Sales - Nampa | B4: 277 | C4: 411.28 | D4: -134.28 | E4: -32.64929002
A5: (Refunds)Overpayments-Nampa | B5: -684.36 | C5: -85.03 | D5: -599.33 | E5: -704.8453487
A6: TOTAL Revenue-Cash Basis | B6: 74586 | C6: 86314.5 | D6: -11728.5 | E6: -13.58809933
A7: NET REVENUE | B7: 74586 | C7: 86314.5 | D7: -11728.5 | E7: -13.58809933
A8: GROSS PROFIT | B8: 74586 | C8: 86314.5 | D8: -11728.5 | E8: -13.58809933
A9: Expenses | B9: 0 | C9: 0 | D9: 0 | E9: 0
A10: Payroll, taxes and benefits | B10: 0 | C10: 0 | D10: 0 | E10: 0
A11: Salaries-PT-Nampa | B11: 24983.66 | C11: 23943.66 | D11: -1040 | E11: -4.343529769
A12: COMM PT - Nampa | B12: 2975 | C12: 2768.4 | D12: -206.6 | E12: -7.462794394
A13: COMM - OFF - Nampa | B13: 458 | C13: 645.96 | D13: 187.96 | E13: 29.09777695
A14: Salaries - Office - Nampa | B14: 10755.02 | C14: 10060.59 | D14: -694.43 | E14: -6.902477886
A15: Payroll Taxes - Nampa | B15: 3394.02 | C15: 3469.26 | D15: 75.24 | E15: 2.168762214
A16: Medical Insurance - Nampa | B16: 3450 | C16: 3450 | D16: 0 | E16: 0
A17: Retirement Plan Contribution-Nampa | B17: 2813.84 | C17: 4395.06 | D17: 1581.22 | E17: 35.97721078
A18: TOTAL Payroll, taxes and benefits | B18: 48829.54 | C18: 48732.93 | D18: -96.61 | E18: -0.1982437748
A19: Rent - Nampa | B19: 4875 | C19: 4875 | D19: 0 | E19: 0
A20: Office Exp - Nampa | B20: 627.43 | C20: 1341.47 | D20: 714.04 | E20: 53.22817506
A21: Web PT - Atlas | B21: 254 | C21: 666 | D21: 412 | E21: 61.86186186
A22: Postage - Nampa | B22: 0 | C22: 24.75 | D22: 24.75 | E22: 100
A23: Telephone and Internet- Nampa | B23: 725.89 | C23: 583.03 | D23: -142.86 | E23: -24.50302729
A24: Utilities - Nampa | B24: 220.97 | C24: 222.75 | D24: 1.78 | E24: 0.7991021324
A25: Repair & Maint - Nampa | B25: 0 | C25: 240 | D25: 240 | E25: 100
A26: Mileage - Nampa | B26: 219.08 | C26: 158.53 | D26: -60.55 | E26: -38.19466347
A27: Depreciation - Nampa | B27: 761.19 | C27: 752.25 | D27: -8.94 | E27: -1.188434696
A28: Advertising - Nampa | B28: 516 | C28: 1375.03 | D28: 859.03 | E28: 62.47354603
A29: PT Supplies - Nampa | B29: 423.75 | C29: 1568.25 | D29: 1144.5 | E29: 72.97943568
A30: Jacob Gabrielsen - Cont Educ | B30: 0 | C30: 540.28 | D30: 540.28 | E30: 100
A31: Dues & Subscriptions - Nampa | B31: 265 | C31: 99.28 | D31: -165.72 | E31: -166.9218372
A32: Insurance - General - Nampa | B32: 379.68 | C32: 33.28 | D32: -346.4 | E32: -1040.865385
A33: Insurance - Malpractice - Nampa | B33: 0 | C33: 146.72 | D33: 146.72 | E33: 100
A34: State Excise Tax - Nampa | B34: 0 | C34: 51.28 | D34: 51.28 | E34: 100
A35: TOTAL Expenses | B35: 58097.53 | C35: 61410.83 | D35: 3313.3 | E35: 5.395302425
A36: OPERATING PROFIT | B36: 16488.47 | C36: 24903.67 | D36: -8415.2 | E36: -33.79100349
A37: Other Income & Expenses | B37: 0 | C37: 0 | D37: 0 | E37: 0
A38: Interest Income - Nampa | B38: 0.25 | C38: 6.28 | D38: -6.03 | E38: -96.01910828
A39: Bank Charge- Nampa | B39: -332.38 | C39: -812.25 | D39: 479.87 | E39: 59.07910126
A40: Interest Expense - Nampa | B40: -91.4 | C40: -630 | D40: 538.6 | E40: 85.49206349
A41: TOTAL Other Income & Expenses | B41: -423.53 | C41: -1435.97 | D41: 1012.44 | E41: 70.50565123
A42: PROFIT BEFORE TAXES | B42: 16064.94 | C42: 23467.7 | D42: -7402.76 | E42: -31.54446324
A43: NET PROFIT | B43: 16064.94 | C43: 23467.7 | D43: -7402.76 | E43: -31.54446324

Sheet H.ME
A1: Revenue-Cash Basis | B1: 0 | C1: 0 | D1: 0 | E1: 0
A2: Professional Fees - Hermiston | B2: 48983.67 | C2: 54852.28 | D2: -5868.61 | E2: -10.6989354
A3: Other Income - Hermiston | B3: 0 | C3: 180.28 | D3: -180.28 | E3: -100
A4: Report Fees - Hermiston | B4: 30 | C4: 0 | D4: 30 | E4: 0
A5: Retail Sales - Hermiston | B5: 137 | C5: 28.22 | D5: 108.78 | E5: 385.471297
A6: TOTAL Revenue-Cash Basis | B6: 49150.67 | C6: 55060.78 | D6: -5910.11 | E6: -10.73379273
A7: NET REVENUE | B7: 49150.67 | C7: 55060.78 | D7: -5910.11 | E7: -10.73379273
A8: GROSS PROFIT | B8: 49150.67 | C8: 55060.78 | D8: -5910.11 | E8: -10.73379273
A9: Expenses | B9: 0 | C9: 0 | D9: 0 | E9: 0
A10: Payroll, taxes and benefits | B10: 0 | C10: 0 | D10: 0 | E10: 0
A11: Salaries-PT-Hermiston | B11: 16308.49 | C11: 16776.96 | D11: 468.47 | E11: 2.792341402
A12: COMM PT - Hermiston | B12: 2469 | C12: 2768.4 | D12: 299.4 | E12: 10.81491114
A13: COMM-OFF- Hermiston | B13: 344 | C13: 461.4 | D13: 117.4 | E13: 25.44429996
A14: Salaries-Office-Hermiston | B14: 6849.63 | C14: 6154.14 | D14: -695.49 | E14: -11.30117287
A15: Payroll Taxes-Hermiston | B15: 2466.59 | C15: 2260.86 | D15: -205.73 | E15: -9.099634652
A16: Medical Insurance - Hermiston | B16: 3450 | C16: 3450 | D16: 0 | E16: 0
A17: Retirement Plan Contribution - Hermiston | B17: 2916.26 | C17: 3307.56 | D17: 391.3 | E17: 11.83047322
A18: TOTAL Payroll, taxes and benefits | B18: 34803.97 | C18: 35179.32 | D18: 375.35 | E18: 1.066962067
A19: Rent - Hermiston | B19: 2400 | C19: 2387.53 | D19: -12.47 | E19: -0.522297102
A20: Office Exp - Hermiston | B20: 500.74 | C20: 696 | D20: 195.26 | E20: 28.0545977
A21: WebPT - Hermiston | B21: 381 | C21: 381 | D21: 0 | E21: 0
A22: Postage - Hermiston | B22: 0 | C22: 15 | D22: 15 | E22: 100
A23: Telephone & Internet - Hermiston | B23: 639.6 | C23: 642 | D23: 2.4 | E23: 0.3738317757
A24: Utilities - Hermiston | B24: 477.11 | C24: 900 | D24: 422.89 | E24: 46.98777778
A25: Repair & Maint - Hermiston | B25: 65 | C25: 62.53 | D25: -2.47 | E25: -3.95010395
A26: Mileage - Hermiston | B26: 39.2 | C26: 18.75 | D26: -20.45 | E26: -109.0666667
A27: Depreciation - Hermiston | B27: 605.29 | C27: 605.25 | D27: -0.04 | E27: -0.006608839323
A28: Advertising - Hermiston | B28: 77.32 | C28: 1249.97 | D28: 1172.65 | E28: 93.81425154
A29: PT Supplies - Hermiston | B29: 358.71 | C29: 475.03 | D29: 116.32 | E29: 24.48687451
A30: Education Expense - Justin Kitchen | B30: 1245 | C30: 774.47 | D30: -470.53 | E30: -60.75509703
A31: Dues & Subscriptions - Hermiston | B31: 0 | C31: 87.47 | D31: 87.47 | E31: 100
A32: Insurance-General - Hermiston | B32: 249.84 | C32: 33 | D32: -216.84 | E32: -657.0909091
A33: Insurance-Malpractice-Hermiston | B33: 0 | C33: 99.75 | D33: 99.75 | E33: 100
A34: Licenses - Hermiston | B34: 0 | C34: 6.28 | D34: 6.28 | E34: 100
A35: TOTAL Expenses | B35: 41842.78 | C35: 43613.35 | D35: 1770.57 | E35: 4.059697317
A36: OPERATING PROFIT | B36: 7307.89 | C36: 11447.43 | D36: -4139.54 | E36: -36.16130433
A37: Other Income & Expenses | B37: 0 | C37: 0 | D37: 0 | E37: 0
A38: Bank Charge - Hermiston | B38: -127.79 | C38: -87.47 | D38: -40.32 | E38: -46.09580428
A39: Interest Expense - Hermiston | B39: -315 | C39: -630 | D39: 315 | E39: 50
A40: TOTAL Other Income & Expenses | B40: -442.79 | C40: -717.47 | D40: 274.68 | E40: 38.28452758
A41: PROFIT BEFORE TAXES | B41: 6865.1 | C41: 10729.96 | D41: -3864.86 | E41: -36.01933278
A42: NET PROFIT | B42: 6865.1 | C42: 10729.96 | D42: -3864.86 | E42: -36.01933278

Sheet MEN.KH
A1: Revenue-Cash Basis | B1: 0 | C1: 0 | D1: 0 | E1: 0
A2: Professional Fees - Meridian North | B2: 708.76 | C2: 0 | D2: 708.76 | E2: 0
A3: TOTAL Revenue-Cash Basis | B3: 708.76 | C3: 0 | D3: 708.76 | E3: 0
A4: NET REVENUE | B4: 708.76 | C4: 0 | D4: 708.76 | E4: 0
A5: GROSS PROFIT | B5: 708.76 | C5: 0 | D5: 708.76 | E5: 0
A6: Expenses | B6: 0 | C6: 0 | D6: 0 | E6: 0
A7: Payroll, taxes and benefits | B7: 0 | C7: 0 | D7: 0 | E7: 0
A8: Salaries PT - Meridian North | B8: 3501.42 | C8: 0 | D8: -3501.42 | E8: 0
A9: Salaries-office - Meridian North | B9: 576.07 | C9: 0 | D9: -576.07 | E9: 0
A10: Payroll Taxes - Meridian North | B10: 269.01 | C10: 0 | D10: -269.01 | E10: 0
A11: TOTAL Payroll, taxes and benefits | B11: 4346.5 | C11: 0 | D11: -4346.5 | E11: 0
A12: Rent - Meridian North | B12: 2100 | C12: 0 | D12: -2100 | E12: 0
A13: Office Exp - ME North | B13: 1145.49 | C13: 0 | D13: -1145.49 | E13: 0
A14: WebPT - ME North | B14: 376 | C14: 0 | D14: -376 | E14: 0
A15: Telephone and internet - Meridian North | B15: 174.26 | C15: 0 | D15: -174.26 | E15: 0
A16: Repair & Maint - MEN | B16: 75 | C16: 0 | D16: -75 | E16: 0
A17: Depreciation - Meriidan North | B17: 886.63 | C17: 0 | D17: -886.63 | E17: 0
A18: Advertising - ME North | B18: 304.77 | C18: 0 | D18: -304.77 | E18: 0
A19: PT Supplies - ME North | B19: 358.94 | C19: 0 | D19: -358.94 | E19: 0
A20: Insurance-General- ME North | B20: 84 | C20: 0 | D20: -84 | E20: 0
A21: TOTAL Expenses | B21: 9851.59 | C21: 0 | D21: -9851.59 | E21: 0
A22: OPERATING PROFIT | B22: -9142.83 | C22: 0 | D22: -9142.83 | E22: 0
A23: Other Income & Expenses | B23: 0 | C23: 0 | D23: 0 | E23: 0
A24: Bank Charge - Meridian North | B24: -25.56 | C24: 0 | D24: -25.56 | E24: 0
A25: TOTAL Other Income & Expenses | B25: -25.56 | C25: 0 | D25: -25.56 | E25: 0
A26: PROFIT BEFORE TAXES | B26: -9168.39 | C26: 0 | D26: -9168.39 | E26: 0
A27: NET PROFIT | B27: -9168.39 | C27: 0 | D27: -9168.39 | E27: 0

Sheet Billing.KH
A1: NET REVENUE | B1: 0 | C1: 0 | D1: 0 | E1: 0
A2: GROSS PROFIT | B2: 0 | C2: 0 | D2: 0 | E2: 0
A3: Expenses | B3: 0 | C3: 0 | D3: 0 | E3: 0
A4: Payroll, taxes and benefits | B4: 0 | C4: 0 | D4: 0 | E4: 0
A5: COMM - OFF | B5: 28576 | C5: 13899.69 | D5: -14676.31 | E5: -105.5873189
A6: Salaries-Office-Billing | B6: 51991.79 | C6: 46477.74 | D6: -5514.05 | E6: -11.86385138
A7: Cleaning hours - billing | B7: 0 | C7: 202.32 | D7: 202.32 | E7: 100
A8: Payroll Taxes-Billing | B8: 5380.4 | C8: 6227.97 | D8: 847.57 | E8: 13.60908932
A9: Medical Insurance-Billing | B9: 6900 | C9: 6900 | D9: 0 | E9: 0
A10: Retirement Plan Contribution - Billing | B10: 13812.05 | C10: 8084.19 | D10: -5727.86 | E10: -70.8526148
A11: TOTAL Payroll, taxes and benefits | B11: 106660.24 | C11: 81791.91 | D11: -24868.33 | E11: -30.4043884
A12: Rent-Billing | B12: 3319.17 | C12: 3129 | D12: -190.17 | E12: -6.077660594
A13: Office Exp-Billing | B13: 8779.73 | C13: 6729 | D13: -2050.73 | E13: -30.47599941
A14: Postage-Billing | B14: 6180.68 | C14: 3136.03 | D14: -3044.65 | E14: -97.08612481
A15: Telephone and Internet-Billing | B15: 1600.14 | C15: 1786.97 | D15: 186.83 | E15: 10.45512795
A16: Utilities-Billing | B16: 884.27 | C16: 780.28 | D16: -103.99 | E16: -13.32726713
A17: Repair & Maint-Billing | B17: 378.54 | C17: 220.78 | D17: -157.76 | E17: -71.4557478
A18: Depreciation-Billing | B18: 490.39 | C18: 370.97 | D18: -119.42 | E18: -32.19128231
A19: Dues & Subscriptions-Billing | B19: 0 | C19: 11.25 | D19: 11.25 | E19: 100
A20: Insurance-General-Billing | B20: 377.52 | C20: 0 | D20: -377.52 | E20: 0
A21: TOTAL Expenses | B21: 128670.68 | C21: 97956.19 | D21: -30714.49 | E21: -31.35533344
A22: OPERATING PROFIT | B22: -128670.68 | C22: -97956.19 | D22: -30714.49 | E22: -31.35533344
A23: Other Income & Expenses | B23: 0 | C23: 0 | D23: 0 | E23: 0
A24: Bank Charge-Billing | B24: -840.48 | C24: -1090.5 | D24: 250.02 | E24: 22.92709766
A25: TOTAL Other Income & Expenses | B25: -840.48 | C25: -1090.5 | D25: 250.02 | E25: 22.92709766
A26: PROFIT BEFORE TAXES | B26: -129511.16 | C26: -99046.69 | D26: -30464.47 | E26: -30.7576861
A27: NET PROFIT | B27: -129511.16 | C27: -99046.69 | D27: -30464.47 | E27: -30.7576861

Sheet Admin.KH
A1: NET REVENUE | B1: 0 | C1: 0 | D1: 0 | E1: 0
A2: GROSS PROFIT | B2: 0 | C2: 0 | D2: 0 | E2: 0
A3: Expenses | B3: 0 | C3: 0 | D3: 0 | E3: 0
A4: Payroll, taxes and benefits | B4: 0 | C4: 0 | D4: 0 | E4: 0
A5: Salaries-PT-Administrative | B5: 14902.59 | C5: 11876.43 | D5: -3026.16 | E5: -25.48038426
A6: COMM - PT | B6: 20408 | C6: 21570.45 | D6: 1162.45 | E6: 5.389085531
A7: COMM - OFF | B7: 0 | C7: 1268.85 | D7: 1268.85 | E7: 100
A8: Salaries-Office-Administrative | B8: 9265.93 | C8: 13513.02 | D8: 4247.09 | E8: 31.42961381
A9: Payroll Taxes-Administrative | B9: 5191.85 | C9: 4484.82 | D9: -707.03 | E9: -15.76495824
A10: Medical Insurance-Admin. | B10: 6325 | C10: 6900 | D10: 575 | E10: 8.333333333
A11: Retirement Plan Contribution | B11: 7933.95 | C11: 10786.14 | D11: 2852.19 | E11: 26.44310198
A12: TOTAL Payroll, taxes and benefits | B12: 64027.32 | C12: 70399.71 | D12: 6372.39 | E12: 9.051727628
A13: Rent-Administrative | B13: 1826.4 | C13: 1761 | D13: -65.4 | E13: -3.713798978
A14: Office Exp-Admin. | B14: 893.24 | C14: 2060.53 | D14: 1167.29 | E14: 56.64998811
A15: Postage-Admin. | B15: 19.3 | C15: 9.28 | D15: -10.02 | E15: -107.9741379
A16: Telephone and Internet-Admin. | B16: 113.38 | C16: 110.53 | D16: -2.85 | E16: -2.578485479
A17: Repair & Maint-Admin. | B17: 0 | C17: 41.72 | D17: 41.72 | E17: 100
A18: Travel-Admin. | B18: 0 | C18: 209.25 | D18: 209.25 | E18: 100
A19: Mileage-Admin. | B19: 889.28 | C19: 522 | D19: -367.28 | E19: -70.36015326
A20: Depreciation-Admin. | B20: 749.26 | C20: 86.72 | D20: -662.54 | E20: -763.9990775
A21: Advertising-Admin. | B21: 457.48 | C21: 1302 | D21: 844.52 | E21: 64.86328725
A22: Clark Heath - Cont Educ (Corp) | B22: 75 | C22: 540.28 | D22: 465.28 | E22: 86.11830902
A23: Corporate Continuing Education Acct | B23: 0 | C23: 196.78 | D23: 196.78 | E23: 100
A24: Jacob Parsons - Cont Educ | B24: 1678.26 | C24: 585.47 | D24: -1092.79 | E24: -186.6517499
A25: Cont Educ - Ashley Atchley | B25: 0 | C25: 490.03 | D25: 490.03 | E25: 100
A26: Education Exp-Walters | B26: 0 | C26: 109.97 | D26: 109.97 | E26: 100
A27: Company Sponsored Events | B27: 3685.3 | C27: 1875 | D27: -1810.3 | E27: -96.54933333
A28: Dues & Subscriptions-Admin. | B28: 0 | C28: 26.25 | D28: 26.25 | E28: 100
A29: Insurance-General-Admin. | B29: 406.32 | C29: 38.72 | D29: -367.6 | E29: -949.3801653
A30: Insurance-Malpractice-Admin. | B30: 0 | C30: 293.25 | D30: 293.25 | E30: 100
A31: Legal & Accounting-Admin. | B31: 7998.7 | C31: 5185.22 | D31: -2813.48 | E31: -54.25960711
A32: Licenses-Admin. | B32: 100 | C32: 300 | D32: 200 | E32: 66.66666667
A33: TOTAL Expenses | B33: 82919.24 | C33: 86143.71 | D33: 3224.47 | E33: 3.743128779
A34: OPERATING PROFIT | B34: -82919.24 | C34: -86143.71 | D34: 3224.47 | E34: 3.743128779
A35: Other Income & Expenses | B35: 0 | C35: 0 | D35: 0 | E35: 0
A36: Interest Income-Admin. | B36: 0 | C36: 128.53 | D36: -128.53 | E36: -100
A37: Bank Charge-Administrative | B37: 0 | C37: -9.094947018e-13 | D37: 9.094947018e-13 | E37: 100
A38: Interest Exp - LT Note-stock Wright | B38: -18800.94 | C38: -19166.72 | D38: 365.78 | E38: 1.908412081
A39: TOTAL Other Income & Expenses | B39: -18800.94 | C39: -19038.19 | D39: 237.25 | E39: 1.24617939
A40: PROFIT BEFORE TAXES | B40: -101720.18 | C40: -105181.9 | D40: 3461.72 | E40: 3.291174622
A41: NET PROFIT | B41: -101720.18 | C41: -105181.9 | D41: 3461.72 | E41: 3.291174622

Sheet Insur.KH
A1: ADAMSS | B1: SHELBY A ADAMS | C1: INSURAL / Additonal Compensation | D1: 1150
A2: AYRES | B2: CHAD R AYRES | C2: INSURAL / Additonal Compensation | D2: 1725
A3: BARKERJ | B3: JESSICA BARKER | C3: INSURAL / Additonal Compensation | D3: 1725
A4: BLATTERD | B4: DALE J BLATTER | C4: INSURAL / Additonal Compensation | D4: 1725
A5: BROOKSB | B5: BRIAN T BROOKS | C5: INSURAL / Additonal Compensation | D5: 1725
A6: BULLOCKD | B6: DAVID A BULLOCK | C6: INSURAL / Additonal Compensation | D6: 1725
A7: CORBETTB | B7: BRIAN J CORBETT | C7: INSURAL / Additonal Compensation | D7: 1725
A8: DAVISB | B8: BRYAN M DAVIS | C8: INSURAL / Additonal Compensation | D8: 1725
A9: EDGECOMBE | B9: SOFIA L EDGECOMBE | C9: INSURAL / Additonal Compensation | D9: 1725
A10: ELIZONDO | B10: MARBELIA ELIZONDO | C10: INSURAL / Additonal Compensation | D10: 1725
A11: GABRIELSENJI | B11: JACOB A GABRIELSEN | C11: INSURAL / Additonal Compensation | D11: 1725
A12: GURNETT | B12: HEIDI L GURNETT | C12: INSURAL / Additonal Compensation | D12: 1150
A13: HEATHC | B13: CLARK D HEATH | C13: INSURAL / Additonal Compensation | D13: 1725
A14: HODGSONJO | B14: JARED K HODGSON | C14: INSURAL / Additonal Compensation | D14: 1725
A15: HOLLEK | B15: KIRK HOLLE | C15: INSURAL / Additonal Compensation | D15: 1725
A16: HOWELL | B16: V L HOWELL | C16: INSURAL / Additonal Compensation | D16: 1725
A17: HURTADO | B17: CHRISTINA HURTADO | C17: INSURAL / Additonal Compensation | D17: 1725
A18: JENSEND | B18: DAVID R JENSEN | C18: INSURAL / Additonal Compensation | D18: 1725
A19: JONESK | B19: KENNETH C JONES | C19: INSURAL / Additonal Compensation | D19: 1725
A20: KITCHENJ | B20: JUSTIN L KITCHEN | C20: INSURAL / Additonal Compensation | D20: 1725
A21: LAKECA | B21: CARTER A LAKE | C21: INSURAL / Additonal Compensation | D21: 1725
A22: LOPEZB | B22: BELEN G LOPEZ | C22: INSURAL / Additonal Compensation | D22: 1725
A23: LUNDERVILLE | B23: KATHY L LUNDERVILLE | C23: INSURAL / Additonal Compensation | D23: 1725
A24: MATZ | B24: SHERI S MATZ | C24: INSURAL / Additonal Compensation | D24: 1725
A25: MEDAVARAPAS | B25: SEKER MEDAVARAPA | C25: INSURAL / Additonal Compensation | D25: 1725
A26: MENDOZAS | B26: SULEMA C MENDOZA | C26: INSURAL / Additonal Compensation | D26: 1725
A27: MEYERM | B27: MICHELLE L MEYER | C27: INSURAL / Additonal Compensation | D27: 1725
A28: MILLERT | B28: TERESA L MILLER | C28: INSURAL / Additonal Compensation | D28: 1725
A29: MITCHELLC | B29: CLIVE D MITCHELL | C29: INSURAL / Additonal Compensation | D29: 1725
A30: NIEVES | B30: CATHERINE L NIEVES | C30: INSURAL / Additonal Compensation | D30: 1725
A31: PARSONSJ | B31: JACOB T PARSONS | C31: INSURAL / Additonal Compensation | D31: 1725
A32: PATTILLOM | B32: MATTHEW D PATTILLO | C32: INSURAL / Additonal Compensation | D32: 1725
A33: PIERCEB | B33: BRETT A PIERCE | C33: INSURAL / Additonal Compensation | D33: 1725
A34: POPE | B34: GISELE C POPE | C34: INSURAL / Additonal Compensation | D34: 1725
A35: RAMBOM | B35: MEGHAN E RAMBO | C35: INSURAL / Additonal Compensation | D35: 1725
A36: ROYLANCES | B36: STEVE S ROYLANCE | C36: INSURAL / Additonal Compensation | D36: 1725
A37: SCRIMSHERR | B37: RODNEY SCRIMSHER | C37: INSURAL / Additonal Compensation | D37: 1725
A38: SHORT | B38: HEATHER R SHORT | C38: INSURAL / Additonal Compensation | D38: 1725
A39: SIMPSOND | B39: DOUGLAS B SIMPSON | C39: INSURAL / Additonal Compensation | D39: 1725
A40: SMITHC | B40: CLAY J SMITH | C40: INSURAL / Additonal Compensation | D40: 1725
A41: THOMAS | B41: JACQUELINE L THOMAS | C41: INSURAL / Additonal Compensation | D41: 1725
A42: TORRES | B42: LACY L TORRES | C42: INSURAL / Additonal Compensation | D42: 1725
A43: TOVAR | B43: LILIANA TOVAR | C43: INSURAL / Additonal Compensation | D43: 1725
A44: WATSON | B44: LISA A WATSON | C44: INSURAL / Additonal Compensation | D44: 1725
A45: WEISKIRCHER | B45: SALLY A WEISKIRCHER | C45: INSURAL / Additonal Compensation | D45: 1725
A46: ZBARASCHUKKO | B46: KOREY L ZBARASCHUK | C46: INSURAL / Additonal Compensation | D46: 1725
E47: 1725
D48: Report total | E48: 78200

Sheet TaskCode.KH
A1: ADAMSS | B1: SHELBY A ADAMS | C1: SALOFF03 / Salaries-Off-Kennewick | D1: 6.25 | E1: 62.5
C2: SALOFF04 / Salaries-Off-Othello | D2: 29.25 | E2: 292.5
C3: SALOFF05 / Salaries-Off-Richland | D3: 14.5 | E3: 145
C4: SALOFF14 / Salaries - Off - W Rhld | D4: 4 | E4: 40
C5: SALOFF23 / Salary-Off-Administrtive | D5: 4 | E5: 40
A6: ALANIZ | B6: GLORIA ALANIZ | C6: SALOFF06 / Salaries-Off-Grandview | D6: 218.25 | E6: 2693.38
A7: ALGER | B7: NICOLE M ALGER | C7: SALOFF22 / Salaries-Office-Billing | D7: 266.75 | E7: 3734.5
A8: AMORUSOM | B8: MELANIE C AMORUSO | C8: SALPT11 / Salaries-PT-Meridian | D8: 18.75 | E8: 653.25
C9: SALPT18 / Salaries-PT-Nampa | D9: 18 | E9: 627.12
A10: AYRES | B10: CHAD R AYRES | C10: SALOFF19 / Salaries-Off-Hermiston | D10: 466 | E10: 6672.63
A11: BARKERJ | B11: JESSICA BARKER | C11: SALPT04 / Salaries-PT-Othello | D11: 404.5 | E11: 11873.43
A12: BARTHOLET | B12: MICHELLE L BARTHOLET | C12: SALOFF05 / Salaries-Off-Richland | D12: 228.5 | E12: 3092.88
A13: BLATTERD | B13: DALE J BLATTER | C13: SALPT05 / Salaries-PT-Richland | D13: 442.5 | E13: 15679.93
C14: SALPT23 / Salaries-PT-Administrtve | D14: 20 | E14: 696.8
A15: BROOKSB | B15: BRIAN T BROOKS | C15: SALPT02 / Salaries-PT-Pasco | D15: 321.5 | E15: 11801.06
C16: SALPT23 / Salaries-PT-Administrtve | D16: 31 | E16: 1080.04
A17: BROWNK | B17: KELLY R BROWN | C17: SALOFF23 / Salary-Off-Administrtive | D17: 8 | E17: 80
A18: BULLOCKD | B18: DAVID A BULLOCK | C18: SALPT06 / Salaries-PT-Grandview | D18: 552 | E18: 20145.24
A19: CARBALLO | B19: ALEX S CARBALLO | C19: SALOFF02 / Salaries-Office-Pasco | D19: 4 | E19: 40
A20: CHAPTON | B20: GARY W CHAPTON | C20: SALOFF23 / Salary-Off-Administrtive | D20: 89.5 | E20: 3268.18
A21: CHRISTENSEN | B21: TAYLER Q CHRISTENSEN | C21: SALOFF05 / Salaries-Off-Richland | D21: 3 | E21: 66
C22: SALOFF23 / Salary-Off-Administrtive | D22: 243.25 | E22: 5351.5
A23: COLEK | B23: KIMBERLY A COLE | C23: SALPT08 / Salaries-PT-MF | D23: 441.5 | E23: 22618.51
A24: COPPINGER | B24: MELISSA K COPPINGER | C24: SALOFF02 / Salaries-Office-Pasco | D24: 166.75 | E24: 2112.25
A25: CORBETTB | B25: BRIAN J CORBETT | C25: SALPT10 / Salaries-PT-Lebanon | D25: 421.25 | E25: 15276.35
A26: DAVISB | B26: BRYAN M DAVIS | C26: SALPT06 / Salaries-PT-Grandview | D26: 523.5 | E26: 19657.49
C27: SALPT23 / Salaries-PT-Administrtve | D27: 1.5 | E27: 52.26
A28: DELEON | B28: TIFFANY DELEON | C28: SALOFF01 / Salaries-Off-Moses Lake | D28: 336 | E28: 3764.25
A29: DIETER | B29: KIMBERLY S DIETER | C29: SALOFF07 / Salaries-Off-Clarkston | D29: 69.75 | E29: 1221.88
A30: EDGECOMBE | B30: SOFIA L EDGECOMBE | C30: SALOFF22 / Salaries-Office-Billing | D30: 502.25 | E30: 10009.84
A31: ELIZONDO | B31: MARBELIA ELIZONDO | C31: SALOFF14 / Salaries - Off - W Rhld | D31: 437 | E31: 7328
A32: FAAMAUSILI | B32: KIANA C FAAMAUSILI | C32: SALOFF23 / Salary-Off-Administrtive | D32: 44.5 | E32: 445
A33: FLORA | B33: DALICIA J FLORA | C33: SALOFF22 / Salaries-Office-Billing | D33: 28 | E33: 392
A34: FOXLEY | B34: BILL FOXLEY | C34: SALOFF01 / Salaries-Off-Moses Lake | D34: 3 | E34: 130.2
C35: SALOFF02 / Salaries-Office-Pasco | D35: 3 | E35: 130.2
C36: SALOFF03 / Salaries-Off-Kennewick | D36: 3 | E36: 130.2
C37: SALOFF04 / Salaries-Off-Othello | D37: 3 | E37: 130.2
C38: SALOFF05 / Salaries-Off-Richland | D38: 3 | E38: 130.2
C39: SALOFF06 / Salaries-Off-Grandview | D39: 3 | E39: 130.2
C40: SALOFF08 / Salaries-Office-MF | D40: 3 | E40: 130.2
C41: SALOFF09 / Salaries-Office-BC | D41: 3 | E41: 130.2
C42: SALOFF14 / Salaries - Off - W Rhld | D42: 3 | E42: 130.2
A43: GABRIELSENJI | B43: JACOB A GABRIELSEN | C43: SALPT18 / Salaries-PT-Nampa | D43: 608 | E43: 23163.27
C44: SALPT23 / Salaries-PT-Administrtve | D44: 1.5 | E44: 52.26
A45: GARCIA | B45: JACQUELINE N GARCIA | C45: SALOFF04 / Salaries-Off-Othello | D45: 189.25 | E45: 1869.89
A46: GIESLERK | B46: KIM GIESLER | C46: SALOFF03 / Salaries-Off-Kennewick | D46: 194 | E46: 2426.51
A47: GRATIOT | B47: PAULA D GRATIOT | C47: SALOFF18 / Salaries-Off-Nampa | D47: 244.08 | E47: 3478.14
A48: GURNETT | B48: HEIDI L GURNETT | C48: SALOFF08 / Salaries-Office-MF | D48: 486.75 | E48: 7414.5
A49: GUTIERREZ | B49: GUADALUPE GUTIERREZ | C49: SALOFF06 / Salaries-Off-Grandview | D49: 373 | E49: 5496
A50: HARRIS | B50: FARRYN T HARRIS | C50: SALOFF22 / Salaries-Office-Billing | D50: 368.25 | E50: 5992.86
A51: HEATHC | B51: CLARK D HEATH | C51: SALPT05 / Salaries-PT-Richland | D51: 302 | E51: 10521.68
C52: SALPT23 / Salaries-PT-Administrtve | D52: 140.5 | E52: 5495.02
A53: HELSEL | B53: LINDA J HELSEL | C53: SALOFF11 / Salaries-Office-Meridian | D53: 149.25 | E53: 1518.57
A54: HODGSONJO | B54: JARED K HODGSON | C54: SALPT10 / Salaries-PT-Lebanon | D54: 499 | E54: 17841.16
A55: HOLLEK | B55: KIRK HOLLE | C55: SALPT03 / Salaries-PT-Kennewick | D55: 372.75 | E55: 13695.5
C56: SALPT23 / Salaries-PT-Administrtve | D56: 98.25 | E56: 3462.23
A57: HOWELL | B57: V L HOWELL | C57: SALOFF05 / Salaries-Off-Richland | D57: 500 | E57: 8920
A58: HUFFAKER | B58: HENDRIATI HUFFAKER | C58: SALOFF07 / Salaries-Off-Clarkston | D58: 339.75 | E58: 4757.75
A59: HURTADO | B59: CHRISTINA HURTADO | C59: SALOFF06 / Salaries-Off-Grandview | D59: 419 | E59: 7785.25
A60: JACKSON | B60: CYNTHIA A JACKSON | C60: SALOFF10 / Salaries-Off-Lebanon | D60: 181 | E60: 2047.25
A61: JENSEN | B61: COURTNEY A JENSEN | C61: SALOFF18 / Salaries-Off-Nampa | D61: 197.25 | E61: 1873.88
A62: JENSEND | B62: DAVID R JENSEN | C62: SALPT01 / Salaries-PT-Moses Lake | D62: 488.75 | E62: 17976.29
C63: SALPT23 / Salaries-PT-Administrtve | D63: 1.5 | E63: 52.26
A64: JOHNSONKR | B64: KRIS L JOHNSON | C64: SALOFF05 / Salaries-Off-Richland | D64: 237.5 | E64: 3773.5
A65: JONESA | B65: ANGELICA R JONES | C65: SALOFF04 / Salaries-Off-Othello | D65: 40 | E65: 460
A66: JONESK | B66: KENNETH C JONES | C66: SALPT04 / Salaries-PT-Othello | D66: 489.25 | E66: 17802.25
C67: SALPT23 / Salaries-PT-Administrtve | D67: 1.5 | E67: 52.26
A68: JONESKR | B68: KARLA R JONES | C68: SALOFF04 / Salaries-Off-Othello | D68: 75 | E68: 1125
A69: KITCHENJ | B69: JUSTIN L KITCHEN | C69: SALPT19 / Salaries-PT-Hermiston | D69: 444.25 | E69: 16082.03
C70: SALPT23 / Salaries-PT-Administrtve | D70: 1.5 | E70: 52.26
A71: LAKECA | B71: CARTER A LAKE | C71: SALPT09 / Salaries-PT-BC | D71: 442.5 | E71: 15893.41
C72: SALPT23 / Salaries-PT-Administrtve | D72: 2.5 | E72: 87.1
A73: LAMBETH | B73: KELSIE B LAMBETH | C73: SALOFF11 / Salaries-Office-Meridian | D73: 100.5 | E73: 822
A74: LOPEZB | B74: BELEN G LOPEZ | C74: SALOFF02 / Salaries-Office-Pasco | D74: 462.75 | E74: 7618.25
A75: LUNDERVILLE | B75: KATHY L LUNDERVILLE | C75: SALOFF01 / Salaries-Off-Moses Lake | D75: 489.5 | E75: 6692.67
A76: MARTINEZL | B76: LUZ A MARTINEZ | C76: SALOFF04 / Salaries-Off-Othello | D76: 363.75 | E76: 4263.38
A77: MATZ | B77: SHERI S MATZ | C77: SALOFF10 / Salaries-Off-Lebanon | D77: 460.5 | E77: 6274.5
A78: MCCALLUM | B78: CHRISTOPHER L MCCALLUM | C78: SALOFF02 / Salaries-Office-Pasco | D78: 78.25 | E78: 1018.75
A79: MEDAVARAPAS | B79: SEKER MEDAVARAPA | C79: SALPT07 / Salaries-PT-Clarkston | D79: 574.25 | E79: 21765.3
A80: MENDOZAS | B80: SULEMA C MENDOZA | C80: SALOFF01 / Salaries-Off-Moses Lake | D80: 499.5 | E80: 6056.7
A81: MESSENGER | B81: CHRISTINA J MESSENGER | C81: SALOFF19 / Salaries-Off-Hermiston | D81: 14.75 | E81: 177
A82: MEYERG | B82: GARRETT J MEYER | C82: SALOFF23 / Salary-Off-Administrtive | D82: 4 | E82: 40
A83: MEYERM | B83: MICHELLE L MEYER | C83: SALOFF22 / Salaries-Office-Billing | D83: 496 | E83: 9528
A84: MILLERT | B84: TERESA L MILLER | C84: SALOFF03 / Salaries-Off-Kennewick | D84: 544 | E84: 9359.64
A85: MINER | B85: KRISTI S MINER | C85: SALOFF10 / Salaries-Off-Lebanon | D85: 48.5 | E85: 485
A86: MITCHELLC | B86: CLIVE D MITCHELL | C86: SALPT01 / Salaries-PT-Moses Lake | D86: 9.5 | E86: 264.77
C87: SALPT02 / Salaries-PT-Pasco | D87: 8 | E87: 222.96
C88: SALPT03 / Salaries-PT-Kennewick | D88: 47.5 | E88: 1323.83
C89: SALPT04 / Salaries-PT-Othello | D89: 18.75 | E89: 522.57
C90: SALPT05 / Salaries-PT-Richland | D90: 58.25 | E90: 1623.43
C91: SALPT06 / Salaries-PT-Grandview | D91: 302.25 | E91: 8455.07
C92: SALPT23 / Salaries-PT-Administrtve | D92: 32 | E92: 1491.84
A93: MORGANC | B93: CONNIE K MORGAN | C93: SALPT08 / Salaries-PT-MF | D93: 125.25 | E93: 6549.75
A94: MORTENSEN | B94: BRYCE D MORTENSEN | C94: SALOFF02 / Salaries-Office-Pasco | D94: 151 | E94: 1760.38
A95: MURPHYM | B95: MEGHAN MURPHY | C95: SALPT07 / Salaries-PT-Clarkston | D95: 166.5 | E95: 4840.37
A96: NELSON | B96: VICKI D NELSON | C96: SALOFF10 / Salaries-Off-Lebanon | D96: 223.5 | E96: 2458.5
A97: NIEVES | B97: CATHERINE L NIEVES | C97: SALOFF07 / Salaries-Off-Clarkston | D97: 477.26 | E97: 7862.54
A98: NULL | B98: KALA A NULL | C98: SALOFF03 / Salaries-Off-Kennewick | D98: 366.75 | E98: 4853.13
C99: SALOFF23 / Salary-Off-Administrtive | D99: 3.75 | E99: 41.25
A100: PARMENTER | B100: Linda K Parmenter | C100: SALOFF10 / Salaries-Off-Lebanon | D100: 128 | E100: 1493.77
A101: PARSONSJ | B101: JACOB T PARSONS | C101: SALPT01 / Salaries-PT-Moses Lake | D101: 21.5 | E101: 792.61
C102: SALPT03 / Salaries-PT-Kennewick | D102: 45.5 | E102: 1685.39
C103: SALPT04 / Salaries-PT-Othello | D103: 39.5 | E103: 1389.25
C104: SALPT05 / Salaries-PT-Richland | D104: 117 | E104: 4098.06
C105: SALPT07 / Salaries-PT-Clarkston | D105: 62.5 | E105: 2194.92
A106: PARSONSJ | B106: JACOB T PARSONS | C106: SALPT08 / Salaries-PT-MF | D106: 39.75 | E106: 1411.02
C107: SALPT09 / Salaries-PT-BC | D107: 53.25 | E107: 1855.23
C108: SALPT14 / Salaries - PT - W Rhld | D108: 99.75 | E108: 3479.65
C109: SALPT23 / Salaries-PT-Administrtve | D109: 45.5 | E109: 2119.22
A110: PATTILLOM | B110: MATTHEW D PATTILLO | C110: SALPT03 / Salaries-PT-Kennewick | D110: 452 | E110: 16369.46
C111: SALPT23 / Salaries-PT-Administrtve | D111: 1.5 | E111: 52.26
A112: PENALOZA | B112: ELIZABETH PENALOZA | C112: SALOFF08 / Salaries-Office-MF | D112: 187 | E112: 2523.52
A113: PIERCEB | B113: BRETT A PIERCE | C113: SALPT11 / Salaries-PT-Meridian | D113: 498 | E113: 19805.56
C114: SALPT18 / Salaries-PT-Nampa | D114: 27.75 | E114: 1193.27
C115: SALPT20 / Salaries PT - ME North | D115: 100 | E115: 3501.42
A116: POPE | B116: GISELE C POPE | C116: SALOFF11 / Salaries-Office-Meridian | D116: 434.75 | E116: 8311.08
C117: SALOFF20 / Salaries-OFF - ME North | D117: 32.75 | E117: 576.07
A118: RAMBOM | B118: MEGHAN E RAMBO | C118: SALPT08 / Salaries-PT-MF | D118: 369.75 | E118: 10904.94
A119: RAMOS | B119: ADILENE RAMOS | C119: SALOFF06 / Salaries-Off-Grandview | D119: 273 | E119: 3868
A120: RASMUSSEN | B120: HEATHER M RASMUSSEN | C120: SALOFF14 / Salaries - Off - W Rhld | D120: 274.75 | E120: 3288.15
A121: RITCHIE | B121: CAROL RITCHIE | C121: SALOFF09 / Salaries-Office-BC | D121: 257.75 | E121: 3210.63
A122: ROMERO | B122: JULIANA ROMERO | C122: SALOFF06 / Salaries-Off-Grandview | D122: 285.5 | E122: 4380
A123: ROYLANCES | B123: STEVE S ROYLANCE | C123: SALPT01 / Salaries-PT-Moses Lake | D123: 554 | E123: 20306.39
A124: ROYLANCEV | B124: VERONICA M CABALLERO-ROYLANCE | C124: SALOFF01 / Salaries-Off-Moses Lake | D124: 60 | E124: 907.8
A125: SCHWARZ | B125: BRITTA R SCHWARZ | C125: SALPT08 / Salaries-PT-MF | D125: 133.25 | E125: 4505.95
A126: SCHWIMMER | B126: BRIGETTE SCHWIMMER | C126: SALOFF07 / Salaries-Off-Clarkston | D126: 235.25 | E126: 2567.05
A127: SCRIMSHERR | B127: RODNEY SCRIMSHER | C127: SALPT14 / Salaries - PT - W Rhld | D127: 510.75 | E127: 18499.05
C128: SALPT23 / Salaries-PT-Administrtve | D128: 1.5 | E128: 52.26
A129: SCRIMSHERS | B129: SAVANNAH J SCRIMSHER | C129: SALOFF14 / Salaries - Off - W Rhld | D129: 159.25 | E129: 1793.75
A130: SHORT | B130: HEATHER R SHORT | C130: SALOFF18 / Salaries-Off-Nampa | D130: 434.25 | E130: 5403
A131: SIMPSOND | B131: DOUGLAS B SIMPSON | C131: SALPT11 / Salaries-PT-Meridian | D131: 593 | E131: 22719.05
C132: SALPT23 / Salaries-PT-Administrtve | D132: 1.5 | E132: 52.26
A133: SIMPSONM | B133: MARIAH SIMPSON | C133: SALOFF11 / Salaries-Office-Meridian | D133: 18 | E133: 130.51
A134: SMITHC | B134: CLAY J SMITH | C134: SALPT02 / Salaries-PT-Pasco | D134: 446.5 | E134: 16334.62
C135: SALPT08 / Salaries-PT-MF | D135: 7.25 | E135: 252.59
C136: SALPT19 / Salaries-PT-Hermiston | D136: 6.5 | E136: 226.46
C137: SALPT23 / Salaries-PT-Administrtve | D137: 1.5 | E137: 52.26
A138: THOMAS | B138: JACQUELINE L THOMAS | C138: SALOFF22 / Salaries-Office-Billing | D138: 570.25 | E138: 15153.15
A139: TORRES | B139: LACY L TORRES | C139: SALOFF03 / Salaries-Off-Kennewick | D139: 14.75 | E139: 199.13
C140: SALOFF09 / Salaries-Office-BC | D140: 392.75 | E140: 5902.13
A141: TOVAR | B141: LILIANA TOVAR | C141: SALOFF04 / Salaries-Off-Othello | D141: 466.5 | E141: 8433.62
A142: WALTERSA | B142: ANNE WALTERS | C142: SALPT02 / Salaries-PT-Pasco | D142: 39 | E142: 1781.13
C143: SALPT03 / Salaries-PT-Kennewick | D143: 12 | E143: 548.04
A144: WALTHALLT | B144: TAYLOR W WALTHALL | C144: SALPT10 / Salaries-PT-Lebanon | D144: 7 | E144: 350
A145: WATSON | B145: LISA A WATSON | C145: SALOFF22 / Salaries-Office-Billing | D145: 407.5 | E145: 6532.5
A146: WEISKIRCHER | B146: SALLY A WEISKIRCHER | C146: SALOFF11 / Salaries-Office-Meridian | D146: 369.75 | E146: 4948.26
A147: WORSECH | B147: DYLAN M WORSECH | C147: SALOFF08 / Salaries-Office-MF | D147: 199.5 | E147: 2139
A148: YOUNG | B148: LETICIA YOUNG | C148: SALOFF08 / Salaries-Office-MF | D148: 247.75 | E148: 3396.88
A149: ZBARASCHUKKO | B149: KOREY L ZBARASCHUK | C149: SALPT08 / Salaries-PT-MF | D149: 505.25 | E149: 18368.4
D150: 505.25 | E150: 18368.4
D151: 30648.09 | E151: 749783.95

Sheet Comm.KH
A1: AYRES | B1: CHAD R AYRES | C1: COMM-OFF / Commission-Office | D1: 344
A2: BARKERJ | B2: JESSICA BARKER | C2: COMM-PT / Commission - PT | D2: 2461
A3: BLATTERD | B3: DALE J BLATTER | C3: COMM-PT / Commission - PT | D3: 22054
A4: BROOKSB | B4: BRIAN T BROOKS | C4: COMM-PT / Commission - PT | D4: 11440
A5: BULLOCKD | B5: DAVID A BULLOCK | C5: COMM-PT / Commission - PT | D5: 19754
A6: CORBETTB | B6: BRIAN J CORBETT | C6: COMM-PT / Commission - PT | D6: 17413
A7: DAVISB | B7: BRYAN M DAVIS | C7: COMM-PT / Commission - PT | D7: 6129
A8: EDGECOMBE | B8: SOFIA L EDGECOMBE | C8: COMM-OFF / Commission-Office | D8: 4661
A9: ELIZONDO | B9: MARBELIA ELIZONDO | C9: COMM-OFF / Commission-Office | D9: 1232
A10: GABRIELSENJI | B10: JACOB A GABRIELSEN | C10: COMM-PT / Commission - PT | D10: 2975
A11: GRATIOT | B11: PAULA D GRATIOT | C11: COMM-OFF / Commission-Office | D11: 229
A12: GURNETT | B12: HEIDI L GURNETT | C12: COMM-OFF / Commission-Office | D12: 575
A13: HARRIS | B13: FARRYN T HARRIS | C13: COMM-OFF / Commission-Office | D13: 300
A14: HEATHC | B14: CLARK D HEATH | C14: COMM-PT / Commission - PT | D14: 16737
A15: HODGSONJO | B15: JARED K HODGSON | C15: COMM-PT / Commission - PT | D15: 5445
A16: HOLLEK | B16: KIRK HOLLE | C16: COMM-PT / Commission - PT | D16: 34959
A17: HOWELL | B17: V L HOWELL | C17: COMM-OFF / Commission-Office | D17: 2417
A18: HUFFAKER | B18: HENDRIATI HUFFAKER | C18: COMM-OFF / Commission-Office | D18: 132
A19: HURTADO | B19: CHRISTINA HURTADO | C19: COMM-OFF / Commission-Office | D19: 1897
A20: JENSEND | B20: DAVID R JENSEN | C20: COMM-PT / Commission - PT | D20: 3541
A21: JONESK | B21: KENNETH C JONES | C21: COMM-PT / Commission - PT | D21: 10170
A22: KITCHENJ | B22: JUSTIN L KITCHEN | C22: COMM-PT / Commission - PT | D22: 2469
A23: LOPEZB | B23: BELEN G LOPEZ | C23: COMM-OFF / Commission-Office | D23: 991
A24: LUNDERVILLE | B24: KATHY L LUNDERVILLE | C24: COMM-OFF / Commission-Office | D24: 1087
A25: MATZ | B25: SHERI S MATZ | C25: COMM-OFF / Commission-Office | D25: 1702
A26: MEDAVARAPAS | B26: SEKER MEDAVARAPA | C26: COMM-PT / Commission - PT | D26: 5302
A27: MEYERM | B27: MICHELLE L MEYER | C27: COMM-OFF / Commission-Office | D27: 10227.5
A28: MILLERT | B28: TERESA L MILLER | C28: COMM-OFF / Commission-Office | D28: 1764
A29: NIEVES | B29: CATHERINE L NIEVES | C29: COMM-OFF / Commission-Office | D29: 530
A30: PARSONSJ | B30: JACOB T PARSONS | C30: COMM-PT / Commission - PT | D30: 3671
A31: PATTILLOM | B31: MATTHEW D PATTILLO | C31: COMM-PT / Commission - PT | D31: 9063
A32: PIERCEB | B32: BRETT A PIERCE | C32: COMM-PT / Commission - PT | D32: 6231
A33: POPE | B33: GISELE C POPE | C33: COMM-OFF / Commission-Office | D33: 1947
A34: ROYLANCES | B34: STEVE S ROYLANCE | C34: COMM-PT / Commission - PT | D34: 10622
A35: SCRIMSHERR | B35: RODNEY SCRIMSHER | C35: COMM-PT / Commission - PT | D35: 16611
A36: SHORT | B36: HEATHER R SHORT | C36: COMM-OFF / Commission-Office | D36: 229
A37: SIMPSOND | B37: DOUGLAS B SIMPSON | C37: COMM-PT / Commission - PT | D37: 13241
A38: SMITHC | B38: CLAY J SMITH | C38: COMM-PT / Commission - PT | D38: 5016
A39: THOMAS | B39: JACQUELINE L THOMAS | C39: COMM-OFF / Commission-Office | D39: 10227.5
A40: TOVAR | B40: LILIANA TOVAR | C40: COMM-OFF / Commission-Office | D40: 1026
A41: WATSON | B41: LISA A WATSON | C41: COMM-OFF / Commission-Office | D41: 3160
E42: 3160
D43: Report total | E43: 269982

Sheet CPT.KH
A1: Revenue-Cash Basis | B1: 0 | C1: 0 | D1: 0 | E1: 0
A2: Professional Fees-Moses Lake | B2: 150149.27 | C2: 142878.47 | D2: 7270.8 | E2: 5.088800293
A3: Professional Fees-Pasco | B3: 115299.31 | C3: 156482.53 | D3: -41183.22 | E3: -26.31809442
A4: Professional Fees-Kennewick | B4: 104230.78 | C4: 137283.28 | D4: -33052.5 | E4: -24.0761293
A5: Professional Fees-Othello | B5: 146695.55 | C5: 140130.28 | D5: 6565.27 | E5: 4.685118734
A6: Professional Fees-Richland | B6: 156213.44 | C6: 152788.5 | D6: 3424.94 | E6: 2.241621588
A7: Professional Fees-Grandview | B7: 244575.22 | C7: 173250.47 | D7: 71324.75 | E7: 41.16857518
A8: Professional Fees-Clarkston | B8: 111906.71 | C8: 112254.47 | D8: -347.76 | E8: -0.3097961266
A9: Profess. Fees-Milton Freewater | B9: 137690.05 | C9: 185034 | D9: -47343.95 | E9: -25.58662192
A10: Profess. Fees-Benton City | B10: 57272.13 | C10: 67722.47 | D10: -10450.34 | E10: -15.43112648
A11: Professional Fees-Lebanon | B11: 128466.72 | C11: 146789.72 | D11: -18323 | E11: -12.48248174
A12: Professional Fees-Meridian | B12: 154485.15 | C12: 118061.72 | D12: 36423.43 | E12: 30.85117683
A13: Professional Fees - West Richland | B13: 92895.32 | C13: 88348.03 | D13: 4547.29 | E13: 5.147019124
A14: Professional Fees-Nampa | B14: 74878.36 | C14: 85957.78 | D14: -11079.42 | E14: -12.8893743
A15: Professional Fees - Hermiston | B15: 48983.67 | C15: 54852.28 | D15: -5868.61 | E15: -10.6989354
A16: Professional Fees - Meridian North | B16: 708.76 | C16: 0 | D16: 708.76 | E16: 0
A17: Other Income-Moses Lake | B17: 200 | C17: 1420.03 | D17: -1220.03 | E17: -85.91579051
A18: Other Income-Pasco | B18: 660.5 | C18: 546 | D18: 114.5 | E18: 20.97069597
A19: Other Income-Kennewick | B19: 1825 | C19: 2316.47 | D19: -491.47 | E19: -21.21633347
A20: Other Income-Richland | B20: 244 | C20: 0 | D20: 244 | E20: 0
A21: Other Income-Grandview | B21: 1900 | C21: 1223.25 | D21: 676.75 | E21: 55.32393215
A22: Other Income-Milton Freewater | B22: 0 | C22: 17767.22 | D22: -17767.22 | E22: -100
A23: Other Income-Benton City | B23: 0 | C23: 90.28 | D23: -90.28 | E23: -100
A24: Other Income-Lebanon | B24: 0 | C24: 20.25 | D24: -20.25 | E24: -100
A25: Other Income-Meridian | B25: 50 | C25: 191.53 | D25: -141.53 | E25: -73.89442907
A26: Other Income - West Richland | B26: 0 | C26: 331.5 | D26: -331.5 | E26: -100
A27: Other Income - Hermiston | B27: 0 | C27: 180.28 | D27: -180.28 | E27: -100
A28: Report Fees-Moses Lake | B28: 1196.07 | C28: 543.28 | D28: 652.79 | E28: 120.1571933
A29: Report Fees-Pasco | B29: 64.08 | C29: 490.5 | D29: -426.42 | E29: -86.93577982
A30: Report Fees-Kennewick | B30: 506.21 | C30: 283.78 | D30: 222.43 | E30: 78.38114032
A31: Report Fees-Othello | B31: 0 | C31: 157.22 | D31: -157.22 | E31: -100
A32: Report Fees-Richland | B32: 692.03 | C32: 571.5 | D32: 120.53 | E32: 21.09011374
A33: Report Fees-Grandview | B33: 770.86 | C33: 377.53 | D33: 393.33 | E33: 104.1850979
A34: Report Fees-Clarkston | B34: 204.62 | C34: 65.72 | D34: 138.9 | E34: 211.3511869
A35: Report Fees-Milton Freewater | B35: 124.25 | C35: 210.75 | D35: -86.5 | E35: -41.04389087
A36: Report Fees-Benton City | B36: 365.29 | C36: 153.75 | D36: 211.54 | E36: 137.5869919
A37: Report Fees-Lebanon | B37: 318.32 | C37: 277.78 | D37: 40.54 | E37: 14.59428325
A38: Report Fees-Meridian | B38: 323.46 | C38: 288.75 | D38: 34.71 | E38: 12.02077922
A39: Report Fees - West Richland | B39: 350.73 | C39: 259.22 | D39: 91.51 | E39: 35.30206003
A40: Report Fees - Dallas | B40: 22.5 | C40: 0 | D40: 22.5 | E40: 0
A41: Report Fees-Nampa | B41: 115 | C41: 30.47 | D41: 84.53 | E41: 277.4204135
A42: Report Fees - Hermiston | B42: 30 | C42: 0 | D42: 30 | E42: 0
A43: Retail Sales-Moses Lake | B43: 1151.48 | C43: 721.5 | D43: 429.98 | E43: 59.5952876
A44: Retail Sales - Pasco | B44: 0 | C44: 119.25 | D44: -119.25 | E44: -100
A45: Retail Sales - Kennewick | B45: 36.24 | C45: 66.47 | D45: -30.23 | E45: -45.47916353
A46: Retail Sales - Othello | B46: 0 | C46: 59.72 | D46: -59.72 | E46: -100
A47: Retail Sales-Richland | B47: 0 | C47: 45 | D47: -45 | E47: -100
A48: Retail Sales-Grandview | B48: 134.94 | C48: 136.78 | D48: -1.84 | E48: -1.34522591
A49: Retail Sales-Clarkston | B49: 137.28 | C49: 178.03 | D49: -40.75 | E49: -22.88940066
A50: Retail Sales-Milton Freewater | B50: 112 | C50: 290.25 | D50: -178.25 | E50: -61.41257537
A51: Retail Sales-Benton City | B51: 55 | C51: 106.03 | D51: -51.03 | E51: -48.12788833
A52: Retail Sales-Lebanon | B52: 393 | C52: 307.5 | D52: 85.5 | E52: 27.80487805
A53: Retail Sales-Meridian | B53: 299.92 | C53: 205.78 | D53: 94.14 | E53: 45.74788609
A54: Retail Sales - West Richland | B54: 175 | C54: 202.78 | D54: -27.78 | E54: -13.6995759
A55: Retail Sales - Nampa | B55: 277 | C55: 411.28 | D55: -134.28 | E55: -32.64929002
A56: Retail Sales - Hermiston | B56: 137 | C56: 28.22 | D56: 108.78 | E56: 385.471297
A57: (Refunds)Overpayments-M/L | B57: -181.59 | C57: -40.03 | D57: -141.56 | E57: -353.6347739
A58: (Refunds)Overpayments-Pasco | B58: 0 | C58: -79.78 | D58: 79.78 | E58: 100
A59: (Refunds)Overpayment-Kennewick | B59: 0 | C59: -25.03 | D59: 25.03 | E59: 100
A60: (Refunds)Overpayments-Othello | B60: -132.88 | C60: -328.97 | D60: 196.09 | E60: 59.60725902
A61: Refunds(Overpayments)-Richland | B61: -519.28 | C61: -106.5 | D61: -412.78 | E61: -387.5868545
A62: Refunds(overpayments)Grandview | B62: 0 | C62: -644.25 | D62: 644.25 | E62: 100
A63: Refunds(overpayments)Clarkston | B63: 0 | C63: -70.78 | D63: 70.78 | E63: 100
A64: (Refunds)Overpayments-M/F | B64: 0 | C64: -1924.78 | D64: 1924.78 | E64: 100
A65: (Refunds)Overpayments-BC | B65: 0 | C65: -291.47 | D65: 291.47 | E65: 100
A66: (Refunds)Overpayments-Lebanon | B66: -77.54 | C66: -82.5 | D66: 4.96 | E66: 6.012121212
A67: (Refunds)Overpayments-Meridian | B67: -677.84 | C67: -137.53 | D67: -540.31 | E67: -392.8670108
A68: Refunds/Overpmts - West Richland | B68: 0 | C68: -157.78 | D68: 157.78 | E68: 100
A69: (Refunds)Overpayments-Nampa | B69: -684.36 | C69: -85.03 | D69: -599.33 | E69: -704.8453487
A70: TOTAL Revenue-Cash Basis | B70: 1735048.73 | C70: 1788535.22 | D70: -53486.49 | E70: -2.990519247
B71: 0 | C71: 0 | D71: 0 | E71: 0
A72: NET REVENUE | B72: 1735048.73 | C72: 1788535.22 | D72: -53486.49 | E72: -2.990519247
B73: 0 | C73: 0 | D73: 0 | E73: 0
A74: GROSS PROFIT | B74: 1735048.73 | C74: 1788535.22 | D74: -53486.49 | E74: -2.990519247
A75: Expenses | B75: 0 | C75: 0 | D75: 0 | E75: 0
A76: Payroll, taxes and benefits | B76: 0 | C76: 0 | D76: 0 | E76: 0
A77: Salaries-PT-Moses Lake | B77: 39340.06 | C77: 38603.04 | D77: -737.02 | E77: -1.909227874
A78: Salaries-PT-Pasco | B78: 30139.77 | C78: 34187.67 | D78: 4047.9 | E78: 11.84023363
A79: Salaries-PT-Kennewick | B79: 33622.22 | C79: 35455.35 | D79: 1833.13 | E79: 5.170249342
A80: Salaries-PT-Othello | B80: 31587.5 | C80: 32542.08 | D80: 954.58 | E80: 2.933371192
A81: Salaries-PT-Richland | B81: 31923.1 | C81: 33069.69 | D81: 1146.59 | E81: 3.46719307
A82: Salaries-PT-Grandview | B82: 48257.8 | C82: 40988.01 | D82: -7269.79 | E82: -17.73638193
A83: Salaries-PT-Clarkston | B83: 33731.09 | C83: 29644.71 | D83: -4086.38 | E83: -13.7845167
A84: Salaries-PT-Milton Freewater | B84: 64611.16 | C84: 58093.5 | D84: -6517.66 | E84: -11.21925861
A85: Salaries-PT-Benton City | B85: 17748.64 | C85: 18451.62 | D85: 702.98 | E85: 3.809855178
A86: Salaries-PT-Lebanon | B86: 33467.51 | C86: 34623.93 | D86: 1156.42 | E86: 3.339944368
A87: Salaries-PT-Meridian | B87: 43177.86 | C87: 34909.05 | D87: -8268.81 | E87: -23.68672307
A88: Salaries - PT - West Richland | B88: 21978.7 | C88: 19550.91 | D88: -2427.79 | E88: -12.41778516
A89: Salaries-PT-Nampa | B89: 24983.66 | C89: 23943.66 | D89: -1040 | E89: -4.343529769
A90: Salaries-PT-Hermiston | B90: 16308.49 | C90: 16776.96 | D90: 468.47 | E90: 2.792341402
A91: Salaries PT - Meridian North | B91: 3501.42 | C91: 0 | D91: -3501.42 | E91: 0
A92: Salaries-PT-Administrative | B92: 14902.59 | C92: 11876.43 | D92: -3026.16 | E92: -25.48038426
A93: Nursing Home Hours - MF | B93: 0 | C93: 7382.4 | D93: 7382.4 | E93: 100
A94: COMM PT - MOSES LAKE | B94: 14163 | C94: 15456.9 | D94: 1293.9 | E94: 8.371018768
A95: Comm - PT | B95: 16456 | C95: 30913.8 | D95: 14457.8 | E95: 46.76811004
A96: Comm - PT | B96: 44022 | C96: 31836.6 | D96: -12185.4 | E96: -38.27481578
A97: Comm - PT | B97: 12631 | C97: 14995.5 | D97: 2364.5 | E97: 15.76806375
A98: COMM - PT | B98: 22054 | C98: 13842 | D98: -8212 | E98: -59.32668689
A99: COMM - PT | B99: 25883 | C99: 21224.4 | D99: -4658.6 | E99: -21.94926594
A100: COMM - PT | B100: 5302 | C100: 7382.4 | D100: 2080.4 | E100: 28.18053749
A101: COMM - PT | B101: 0 | C101: 23531.4 | D101: 23531.4 | E101: 100
A102: COMM - PT | B102: 0 | C102: 2883.75 | D102: 2883.75 | E102: 100
A103: COMM - PT | B103: 22858 | C103: 20532.3 | D103: -2325.7 | E103: -11.32703107
A104: COMM - PT | B104: 19472 | C104: 9689.4 | D104: -9782.6 | E104: -100.9618759
A105: COMM - PT | B105: 16611 | C105: 13842 | D105: -2769 | E105: -20.00433463
A106: COMM PT - Nampa | B106: 2975 | C106: 2768.4 | D106: -206.6 | E106: -7.462794394
A107: COMM PT - Hermiston | B107: 2469 | C107: 2768.4 | D107: 299.4 | E107: 10.81491114
A108: COMM - PT | B108: 20408 | C108: 21570.45 | D108: 1162.45 | E108: 5.389085531
A109: COMM - OFF | B109: 1087 | C109: 1499.55 | D109: 412.55 | E109: 27.51158681
A110: COMM - OFF | B110: 991 | C110: 2307 | D110: 1316 | E110: 57.0437798
A111: COMM - OFF | B111: 1764 | C111: 2307 | D111: 543 | E111: 23.53706112
A112: COMM - OFF | B112: 1026 | C112: 1499.55 | D112: 473.55 | E112: 31.57947384
A113: COMM - OFF | B113: 2417 | C113: 1268.85 | D113: -1148.15 | E113: -90.48744927
A114: COMM - OFF | B114: 1897 | C114: 1730.25 | D114: -166.75 | E114: -9.637335645
A115: COMM - OFF | B115: 662 | C115: 968.94 | D115: 306.94 | E115: 31.67791607
A116: COMM - OFF | B116: 0 | C116: 2768.4 | D116: 2768.4 | E116: 100
A117: COMM - OFF | B117: 0 | C117: 346.05 | D117: 346.05 | E117: 100
A118: COMM - OFF | B118: 1702 | C118: 1730.25 | D118: 28.25 | E118: 1.632712036
A119: COMM - OFF | B119: 1947 | C119: 876.66 | D119: -1070.34 | E119: -122.0929437
A120: COMM - OFF | B120: 1232 | C120: 498.09 | D120: -733.91 | E120: -147.3448574
A121: COMM - OFF - Nampa | B121: 458 | C121: 645.96 | D121: 187.96 | E121: 29.09777695
A122: COMM-OFF- Hermiston | B122: 344 | C122: 461.4 | D122: 117.4 | E122: 25.44429996
A123: COMM - OFF | B123: 28576 | C123: 13899.69 | D123: -14676.31 | E123: -105.5873189
A124: COMM - OFF | B124: 0 | C124: 1268.85 | D124: 1268.85 | E124: 100
A125: Salaries-Office-Moses Lake | B125: 17551.62 | C125: 14245.71 | D125: -3305.91 | E125: -23.20635476
A126: Salaries-Office-Pasco | B126: 12679.83 | C126: 11944.02 | D126: -735.81 | E126: -6.16048868
A127: Salaries-Office-Kennewick | B127: 17031.11 | C127: 13707.27 | D127: -3323.84 | E127: -24.24873808
A128: Salaries-Office-Othello | B128: 16574.59 | C128: 15524.73 | D128: -1049.86 | E128: -6.762500862
A129: Salaries-Office-Richland | B129: 16127.58 | C129: 14555.79 | D129: -1571.79 | E129: -10.79838332
A130: Salaries-Office-Grandview | B130: 24352.83 | C130: 18122.4 | D130: -6230.43 | E130: -34.37971792
A131: Salaries-Office-Clarkston | B131: 16409.22 | C131: 13248.42 | D131: -3160.8 | E131: -23.85793929
A132: Salaries-Off-Milton Freewater | B132: 15604.1 | C132: 14352.54 | D132: -1251.56 | E132: -8.720128981
A133: Salaries-Off-Benton City | B133: 9242.96 | C133: 10569.99 | D133: 1327.03 | E133: 12.55469494
A134: Salaries-Office-Lebanon | B134: 12759.02 | C134: 13503.57 | D134: 744.55 | E134: 5.513727111
A135: Salaries-Office-Meridian | B135: 15730.42 | C135: 11970.33 | D135: -3760.09 | E135: -31.41174888
A136: Salaries - Office- West Richland | B136: 12580.1 | C136: 12843.75 | D136: 263.65 | E136: 2.052749392
A137: Salaries - Office - Nampa | B137: 10755.02 | C137: 10060.59 | D137: -694.43 | E137: -6.902477886
A138: Salaries-Office-Hermiston | B138: 6849.63 | C138: 6154.14 | D138: -695.49 | E138: -11.30117287
A139: Salaries-office - Meridian North | B139: 576.07 | C139: 0 | D139: -576.07 | E139: 0
A140: Salaries-Office-Billing | B140: 51991.79 | C140: 46477.74 | D140: -5514.05 | E140: -11.86385138
A141: Salaries-Office-Administrative | B141: 9265.93 | C141: 13513.02 | D141: 4247.09 | E141: 31.42961381
A142: Cleaning hours - billing | B142: 0 | C142: 202.32 | D142: 202.32 | E142: 100
A143: Payroll Taxes-Moses lake | B143: 6659.37 | C143: 6653.61 | D143: -5.76 | E143: -0.08656954646
A144: Payroll Taxes-Pasco | B144: 3755.88 | C144: 6486.36 | D144: 2730.48 | E144: 42.09572087
A145: Payroll Taxes-Kennewick | B145: 5236.93 | C145: 6994.83 | D145: 1757.9 | E145: 25.13141849
A146: Payroll Taxes-Othello | B146: 4955.48 | C146: 5898.54 | D146: 943.06 | E146: 15.98802416
A147: Payroll Taxes-Richland | B147: 3248.26 | C147: 5332.41 | D147: 2084.15 | E147: 39.08457902
A148: Payroll Taxes-Grandview | B148: 6269.19 | C148: 7357.47 | D148: 1088.28 | E148: 14.79149762
A149: Payroll Taxes-Clarkston | B149: 4635.44 | C149: 4040.25 | D149: -595.19 | E149: -14.73151414
A150: Payroll Taxes-Milton Freewater | B150: 8291.89 | C150: 8584.35 | D150: 292.46 | E150: 3.406897435
A151: Payroll Taxes-Benton City | B151: 2679.7 | C151: 3152.97 | D151: 473.27 | E151: 15.01029188
A152: Payroll Taxes-Lebanon | B152: 4778.25 | C152: 6350.25 | D152: 1572 | E152: 24.75493091
A153: Payroll Taxes-Meridian | B153: 5525.56 | C153: 5233.65 | D153: -291.91 | E153: -5.577560593
A154: Payroll Taxes - West Richland | B154: 2780.74 | C154: 4169.67 | D154: 1388.93 | E154: 33.31030993
A155: Payroll Taxes - Nampa | B155: 3394.02 | C155: 3469.26 | D155: 75.24 | E155: 2.168762214
A156: Payroll Taxes-Hermiston | B156: 2466.59 | C156: 2260.86 | D156: -205.73 | E156: -9.099634652
A157: Payroll Taxes - Meridian North | B157: 269.01 | C157: 0 | D157: -269.01 | E157: 0
A158: Payroll Taxes-Billing | B158: 5380.4 | C158: 6227.97 | D158: 847.57 | E158: 13.60908932
A159: Payroll Taxes-Administrative | B159: 5191.85 | C159: 4484.82 | D159: -707.03 | E159: -15.76495824
A160: Additional Compensation-Moses Lake | B160: 6900 | C160: 6900 | D160: 0 | E160: 0
A161: Medical Insurance-Pasco | B161: 5175 | C161: 5175 | D161: 0 | E161: 0
A162: Medical Insurance-Kennewick | B162: 5175 | C162: 5175 | D162: 0 | E162: 0
A163: Medical Insurance-Othello | B163: 5175 | C163: 5175 | D163: 0 | E163: 0
A164: Medical Insurance-Richland | B164: 3450 | C164: 3450 | D164: 0 | E164: 0
A165: Medical Insurance-Grandview | B165: 5175 | C165: 5175 | D165: 0 | E165: 0
A166: Medical Insurance-Clarkston | B166: 3450 | C166: 3450 | D166: 0 | E166: 0
A167: Medical Insur-Milton Freewater | B167: 5175 | C167: 6612.47 | D167: 1437.47 | E167: 21.73877537
A168: Medical Insur-Benton City | B168: 3450 | C168: 3450 | D168: 0 | E168: 0
A169: Medical Insurance-Lebanon | B169: 5175 | C169: 5175 | D169: 0 | E169: 0
A170: Medical Insurance-Meridian | B170: 6900 | C170: 6900 | D170: 0 | E170: 0
A171: Medical Insurance - West Rhld | B171: 3450 | C171: 3450 | D171: 0 | E171: 0
A172: Medical Insurance - Nampa | B172: 3450 | C172: 3450 | D172: 0 | E172: 0
A173: Medical Insurance - Hermiston | B173: 3450 | C173: 3450 | D173: 0 | E173: 0
A174: Medical Insurance-Billing | B174: 6900 | C174: 6900 | D174: 0 | E174: 0
A175: Medical Insurance-Admin. | B175: 6325 | C175: 6900 | D175: 575 | E175: 8.333333333
A176: Retirement Plan Contribution - ML | B176: 10998.38 | C176: 9521.22 | D176: -1477.16 | E176: -15.51439836
A177: Retirement Plan Contribution - P | B177: 7787.52 | C177: 10636.2 | D177: 2848.68 | E177: 26.78287358
A178: Retirement Plan Contribution - K | B178: 16397.56 | C178: 10860.42 | D178: -5537.14 | E178: -50.98458439
A179: Retirement Plan Contribution - O | B179: 9355.36 | C179: 8250.51 | D179: -1104.85 | E179: -13.39129339
A180: Retirement Plan Contribution - R | B180: 7642.76 | C180: 6706.23 | D180: -936.53 | E180: -13.96507427
A181: Retirement Plan Contribution - G | B181: 12365.34 | C181: 11669.73 | D181: -695.61 | E181: -5.960806291
A182: Retirement Plan Contribution - C | B182: 6208.73 | C182: 5714.43 | D182: -494.3 | E182: -8.650031587
A183: Retirement Plan Contribution - MF | B183: -662.72 | C183: 10733.55 | D183: 11396.27 | E183: 106.1742853
A184: Retirement Plan Contribution - BC | B184: 430.72 | C184: 4818.39 | D184: 4387.67 | E184: 91.06091454
A185: Retirement Plan Contribution - S | B185: 9836.59 | C185: 9567.36 | D185: -269.23 | E185: -2.814046926
A186: Retirement Plan Contribution - ME | B186: 13151.24 | C186: 7126.77 | D186: -6024.47 | E186: -84.53296514
A187: Retirement Plan Contribution - WR | B187: 3145.8 | C187: 5217.75 | D187: 2071.95 | E187: 39.70964496
A188: Retirement Plan Contribution-Nampa | B188: 2813.84 | C188: 4395.06 | D188: 1581.22 | E188: 35.97721078
A189: Retirement Plan Contribution - Hermiston | B189: 2916.26 | C189: 3307.56 | D189: 391.3 | E189: 11.83047322
A190: Retirement Plan Contribution - Billing | B190: 13812.05 | C190: 8084.19 | D190: -5727.86 | E190: -70.8526148
A191: Retirement Plan Contribution | B191: 7933.95 | C191: 10786.14 | D191: 2852.19 | E191: 26.44310198
A192: TOTAL Payroll, taxes and benefits | B192: 1303197.33 | C192: 1273289.78 | D192: -29907.55 | E192: -2.348840811
A193: Rent-Moses Lake | B193: 11400 | C193: 11400 | D193: 0 | E193: 0
A194: Rent-Pasco | B194: 11400 | C194: 11400 | D194: 0 | E194: 0
A195: Rent-Kennewick | B195: 7550.95 | C195: 5061 | D195: -2489.95 | E195: -49.19877495
A196: Rent-Othello | B196: 9600 | C196: 9600 | D196: 0 | E196: 0
A197: Rent-Richland | B197: 21300 | C197: 21097.97 | D197: -202.03 | E197: -0.9575802791
A198: Rent-Grandview | B198: 12360 | C198: 12360 | D198: 0 | E198: 0
A199: Rent-Clarkston | B199: 9996 | C199: 9996 | D199: 0 | E199: 0
A200: Rent-Milton Freewater | B200: 9276 | C200: 9215.53 | D200: -60.47 | E200: -0.6561749568
... 340 more rows
